Cogmind - Beta 16 @@@ ROGUE MODE // 2025.11.27 @ 03:36:29 Player: ChromeKnight Result: Destroyed by P-80 Master with Gamma Rifle Performance ------------- Evolutions (8) 4000 Regions Visited (38) 7600 Robots Destroyed (535) 2675 Value Destroyed (26825) 26825 Prototype IDs (77) 1540 Alien Tech Used (8) 1600 Bonus (15364) 15364 TOTAL SCORE: 59604 Bonus ------- High Alert Combat Kills 3671 Follower Combat Kills 1645 Entered Garrisons 200 Network Hubs Disabled 800 Aligned with FarCom 300 Destroyed Z-Imprinter 1000 Triggered Deep Caves Wall 500 Exposed GOLEM Chamber 500 Acquired ECA 300 Met Zhirov 300 Met Warlord at Base 500 MAIN.C Attacked Warlord 500 Built Enhanced Grunts 300 A7 Reached Mainframe 300 Met R17 at Cetus 500 Met R17 at Research 2000 Met Warlord at Research 2000 Scanned by Researcher 500 Friendly Fire -452 Cogmind --------- Core Integrity 0/1450 Matter 300/300 Energy 1100/1100 System Corruption 32% Temperature Cool (0) Movement Core (50) +NEM 1 Location -2/Section 7 Parts ------- > --- POWER (2) -------- (None) > --- PROPULSION (2) --- Assembled Alloy Leg > --- UTILITY (16) ----- Assembled Nanovents Assembled Biocell Array Experimental Optical Array Experimental Targeting Computer > --- WEAPON (3) ------- (None) > --- INVENTORY (5) ---- GOLEM Unit GOLEM Unit Peak State ------------ > --- POWER ------------ Assembled Flux Generator > --- PROPULSION ------- Assembled Alloy Leg Assembled Alloy Leg > --- UTILITY ---------- Assembled Nanovents Assembled Nanovents Assembled Nanovents Assembled Nanovents Huge Storage Unit Assembled Biocell Array Assembled Suspension Frame Assembled Metafiber Network Experimental Optical Array Assembled Combat Suite Assembled Alloy Armor Assembled Alloy Armor System Mapper Ghost Barrier GOLEM Unit > --- WEAPON ----------- Assembled Focal Cannon Core Stripper > --- INVENTORY -------- Experimental Targeting Computer AEGIS Remote Shield GOLEM Unit GOLEM Unit GOLEM Unit GOLEM Unit Dimensional Node Initializer Transdimensional Reconstructor Transdimensional Reconstructor Transdimensional Reconstructor High-powered Transdimensional Reconstructor Subatomic Replicator Advanced Remote Datajack Field Lobotomy Kit Improved Plasma Cutter [Rating: 223] Favorites ----------- Power Assembled Flux Generator Engine Light Angular Momentum Engine Power Core Light Nuclear Core Reactor Assembled Flux Generator Propulsion Assembled Alloy Leg Leg Assembled Alloy Leg Wheel Armored Huge Wheel Utility Assembled Nanovents Device Assembled Nanovents Storage Huge Storage Unit Processor Advanced Targeting Computer Hackware System Mapper Protection Assembled Alloy Armor Weapon Assembled Focal Cannon Energy Gun Improved Medium Laser Energy Cannon Assembled Focal Cannon Ballistic Gun Enhanced Autogun Launcher Heavy Rocket Launcher Special Weapon Plasma Cutter Impact Weapon Core Stripper Slashing Weapon Axe Piercing Weapon CR-A16's Pointy Stick Build | -11 -10 -10 -9 -9 -9 -8 -8 -8 -8 -8 -7 -7 -7 -7 -7 -6 -6 -6 -6 -6 -6 -5 -5 -5 -5 -5 -5 -4 -4 -4 -4 -4 -3 -3 -3 -2 -2 -2 ------- Run | Yrd Mat Min Mat Min Exi Min Mat Gar Mat Sto Fac Low Low Zio Dee Pro Fac Ext Cet Arc Hub Fac Was Fac Upp Upp Zhi Pro Fac Upp Upp War Pro Res Qua Res Tes Sec Slots Evolved 16 | . . . 2 . . . 2 . . . 2 . . . . . 2 . . . . 2 . . . . . . 2 . . . . 2 . 2 . . Power 1 | . . . . . . . . . . . . . . . . . 1 . . . . . . . . . . . . . . . . . . . . . Propulsion . | . . . . . . . . . . . . . . . . . . . . . . . . . . . . . . . . . . . . . . . Utility 14 | . . . 1 . . . 2 . . . 2 . . . . . 1 . . . . 2 . . . . . . 2 . . . . 2 . 2 . . Weapon 1 | . . . 1 . . . . . . . . . . . . . . . . . . . . . . . . . . . . . . . . . . . Parts Attached 104 | 6 3 5 10 10 1 . 4 7 3 5 3 1 1 2 15 . . . 2 . . . . 4 . 2 . . . . . . . 1 . 5 4 10 Power 10 | 1 . 1 . 2 . . . . 1 1 . . 1 . 1 . . . . . . . . . . . . . . . . . . . . . . 2 Engine 6 | 1 . 1 . 2 . . . . . 1 . . 1 . . . . . . . . . . . . . . . . . . . . . . . . . Core 1 | . . . . . . . . . 1 . . . . . . . . . . . . . . . . . . . . . . . . . . . . . Reactor 3 | . . . . . . . . . . . . . . . 1 . . . . . . . . . . . . . . . . . . . . . . 2 Propulsion 10 | 2 . 1 2 2 . . 1 . 1 . . . . . 1 . . . . . . . . . . . . . . . . . . . . . . . Treads . | . . . . . . . . . . . . . . . . . . . . . . . . . . . . . . . . . . . . . . . Leg . | . . . . . . . . . . . . . . . . . . . . . . . . . . . . . . . . . . . . . . . Wheel 10 | 2 . 1 2 2 . . 1 . 1 . . . . . 1 . . . . . . . . . . . . . . . . . . . . . . . Hover . | . . . . . . . . . . . . . . . . . . . . . . . . . . . . . . . . . . . . . . . Flight . | . . . . . . . . . . . . . . . . . . . . . . . . . . . . . . . . . . . . . . . Utility 47 | 1 2 1 2 2 1 . 3 5 1 1 2 . . . 5 . . . 2 . . . . 4 . 1 . . . . . . . 1 . 5 2 6 Device 16 | . 1 1 . 2 . . 1 2 1 . . . . . 1 . . . . . . . . 2 . 1 . . . . . . . 1 . . 2 1 Storage 6 | 1 1 . 1 . . . . . . . 1 . . . . . . . . . . . . . . . . . . . . . . . . 1 . 1 Processor 10 | . . . . . . . 2 . . . 1 . . . . . . . . . . . . 2 . . . . . . . . . . . 4 . 1 Hackware 2 | . . . . . . . . . . . . . . . . . . . . . . . . . . . . . . . . . . . . . . 2 Protection 13 | . . . 1 . 1 . . 3 . 1 . . . . 4 . . . 2 . . . . . . . . . . . . . . . . . . 1 Artifact . | . . . . . . . . . . . . . . . . . . . . . . . . . . . . . . . . . . . . . . . Weapon 37 | 2 1 2 6 4 . . . 2 . 3 1 1 . 2 8 . . . . . . . . . . 1 . . . . . . . . . . 2 2 Energy Gun 12 | 2 . 2 5 . . . . . . . . . . . 1 . . . . . . . . . . . . . . . . . . . . . 2 . Energy Cannon 2 | . . . . . . . . . . . . . . . 1 . . . . . . . . . . . . . . . . . . . . . . 1 Ballistic Gun 9 | . . . 1 3 . . . . . 1 1 . . 1 2 . . . . . . . . . . . . . . . . . . . . . . . Ballistic Cannon . | . . . . . . . . . . . . . . . . . . . . . . . . . . . . . . . . . . . . . . . Launcher 5 | . 1 . . 1 . . . 1 . 1 . . . . 1 . . . . . . . . . . . . . . . . . . . . . . . Special Weapon 5 | . . . . . . . . . . 1 . 1 . 1 2 . . . . . . . . . . . . . . . . . . . . . . . Impact Weapon 1 | . . . . . . . . . . . . . . . . . . . . . . . . . . . . . . . . . . . . . . 1 Slashing Weapon 2 | . . . . . . . . 1 . . . . . . . . . . . . . . . . . 1 . . . . . . . . . . . . Piercing Weapon 1 | . . . . . . . . . . . . . . . 1 . . . . . . . . . . . . . . . . . . . . . . . Special Melee Weapon . | . . . . . . . . . . . . . . . . . . . . . . . . . . . . . . . . . . . . . . . Unidentified Prototypes 28 | . . . 3 1 . . . . . 4 1 . . 1 2 . . . 1 . . . . . . . 1 . . . . . . . 1 1 3 9 Parts Lost 136 | . . 1 . 8 . . . . . . . . . . 3 . . 1 1 . 2 10 5 4 1 2 . 4 5 3 3 4 1 3 7 2 21 45 Power 9 | . . . . 1 . . . . . . . . . . . . . . . . 1 . 1 . . . . . . . . 1 . . . . 1 4 Propulsion 9 | . . 1 . 2 . . . . . . . . . . . . . . . . . . . . . . . . . . . . . . . . 2 4 Utility 88 | . . . . 2 . . . . . . . . . . 3 . . 1 1 . 1 10 2 3 1 2 . 4 4 2 3 2 . 2 5 1 12 27 Weapon 30 | . . . . 3 . . . . . . . . . . . . . . . . . . 2 1 . . . . 1 1 . 1 1 1 2 1 6 10 Highest Loss Streak 18 | . . 1 . 8 . . . . . . . . . . 1 . . 1 1 . 1 10 4 1 1 1 . 2 2 2 2 4 1 2 3 1 7 18 To Critical Strikes 4 | . . . . . . . . . . . . . . . . . . . . . . . 2 1 . . . . . . . . . . . . . 1 Average Backups 15 | . 4 9 19 24 21 21 20 17 15 16 15 16 13 14 15 16 15 15 16 16 16 16 16 15 15 13 12 13 13 12 13 13 13 13 18 18 18 13 Power . | . . . 1 . . . . . . . . . . . . 1 . 1 1 1 1 1 1 1 1 1 1 1 1 1 1 1 1 1 1 1 . . Propulsion 1 | . . 1 1 2 2 2 2 3 3 3 3 3 3 3 2 . . . . . . . . . . . . . . . . . . . . . . . Utility 7 | . 1 4 8 10 10 10 9 6 6 7 5 5 3 3 4 10 10 10 10 11 11 11 11 10 10 9 7 7 7 7 7 7 7 7 6 6 8 5 Weapon 3 | . 1 2 8 10 8 8 7 5 4 4 4 6 5 7 6 3 3 3 2 2 1 1 1 1 1 . . 1 1 1 1 1 1 1 1 2 1 . Tool/Special . | . . . . . . . . . . . . . . . . . . . . . . . . . . . . . . . . . . . . . . . Unused Backups 52 | . . 2 1 1 4 . 5 5 . 1 2 1 2 . 11 . . . 1 . 1 . . . . 2 . . . . . . . . 1 1 1 10 Power 2 | . . . . . . . . 1 . . . . . . . . . . . . . . . . . . . . . . . . . . . . . 1 Propulsion 4 | . . . . . . . 2 . . . . . . . 2 . . . . . . . . . . . . . . . . . . . . . . . Utility 28 | . . 1 . 1 2 . 1 3 . 1 2 1 1 . 9 . . . . . . . . . . 2 . . . . . . . . . . 1 3 Weapon 11 | . . 1 1 . 2 . 2 1 . . . . 1 . . . . . 1 . 1 . . . . . . . . . . . . . . . . 1 Tool/Special 7 | . . . . . . . . . . . . . . . . . . . . . . . . . . . . . . . . . . . 1 1 . 5 Average Slot Usage (%) 85 | . 95 99 98 92 96 100 97 84 81 79 83 84 83 84 78 91 84 86 85 58 85 86 81 86 87 86 79 86 88 88 88 88 88 89 89 90 87 76 Engine 3 | . 14 14 11 10 11 11 9 9 1 8 7 7 7 7 6 . . . . . . . . . . . . . . . . . . . . . . . Reactor 3 | . . . . . . . . . . . . . . . . 7 5 6 6 4 6 5 5 5 5 5 5 5 5 5 5 5 4 3 4 4 3 4 Leg 6 | . . . . . . . . . . . . . . . 3 15 13 13 13 10 13 11 11 11 10 11 11 11 10 10 10 10 10 9 8 8 7 7 Wheel 4 | . 28 27 21 20 22 22 16 9 9 9 7 7 7 7 5 . . . . . . . . . . . . . . . . . . . . . . . Device 21 | . 9 14 11 10 11 11 11 10 9 8 14 15 7 7 9 23 24 26 17 11 19 31 32 31 28 29 27 28 30 30 30 31 31 32 32 33 32 27 Storage 11 | . 14 14 11 11 11 11 9 9 9 9 7 7 7 7 8 15 13 13 13 9 12 11 11 11 11 11 11 11 14 15 15 15 15 14 14 13 12 8 Processor 4 | . . . . . . . 14 9 9 9 15 15 15 15 8 . . . . . . . . 2 5 5 5 5 . . . . . . . 2 4 4 Protection 9 | . . . 9 7 7 11 9 10 9 8 7 7 14 15 13 7 6 6 15 13 13 6 3 5 4 5 5 5 9 10 10 10 9 13 13 15 11 7 Energy Gun 1 | . 27 28 32 24 . . . . . . . . . . 1 . . . . . . . . . . . . . . . . . . . . . . . Energy Cannon 9 | . . . . . . . . . . . . . . . 4 22 20 19 20 7 20 17 14 15 17 15 10 16 15 15 15 14 14 14 14 13 11 7 Ballistic Gun 7 | . . . . 6 33 33 27 26 27 25 22 23 23 18 11 . . . . . . . . . . . . . . . . . . . . . . . Peak Build Rating 223 | 6 7 14 27 33 36 36 49 52 52 54 63 67 60 62 123 123 142 142 142 142 142 161 161 161 155 155 152 152 173 173 173 173 174 192 201 219 219 223 Average Rating 121 | 3 6 10 23 26 32 36 41 50 50 49 61 61 54 55 65 122 139 141 141 103 141 158 150 154 154 151 139 149 171 172 172 172 172 189 198 217 210 186 On Entrance 107 | . 6 7 14 27 29 36 36 49 52 50 50 62 61 56 59 123 123 142 142 142 142 133 134 134 155 155 151 152 152 173 173 173 146 174 190 201 217 182 Avg Prop Armor Cover (%) . | . . . . . . . . . . . . . . . . . . . . . . . . . . . . . . . . . . . . . . . Naked Turns . | . . . . . . . . . . . . . . . . . . . . . . . . . . . . . . . . . . . . . . . Heaviest Build 195 | 12 18 20 100 103 106 106 111 119 120 119 120 120 124 129 149 144 175 175 187 187 183 189 177 177 177 177 177 177 183 183 183 183 183 189 189 195 190 194 Greatest Support 80 | 20 20 20 26 20 20 20 28 28 28 28 28 28 28 28 60 60 60 60 60 60 60 80 80 80 60 60 60 80 80 80 80 80 80 80 80 80 80 80 Greatest Overweight (x) 40 | . . . 9 31 5 5 5 4 4 4 4 4 4 4 5 2 2 2 3 3 3 3 2 5 5 2 2 5 3 2 3 3 3 2 3 3 6 40 Average Overweight (x) 2 | . . . 3 4 4 5 4 3 4 4 4 4 4 4 3 2 2 2 2 3 3 2 1 2 2 2 2 2 2 2 2 2 2 2 2 2 2 2 Largest Inventory Capacity 25 | 8 10 10 25 25 25 25 25 25 25 25 25 25 25 25 25 25 25 25 25 25 25 25 25 25 25 25 25 25 25 25 25 25 25 25 25 25 25 25 Average Capacity 24 | 6 8 10 24 25 25 25 25 25 25 25 25 25 25 25 25 25 25 25 25 25 25 25 25 25 25 25 25 25 25 25 25 25 25 25 25 25 25 24 Most Carried 25 | 1 8 10 25 25 24 24 25 25 25 25 25 25 24 25 25 25 25 25 25 25 25 25 25 25 23 23 19 19 19 19 19 19 20 20 25 25 25 23 Average Carried 21 | . 4 9 19 24 23 24 23 24 24 24 24 24 19 20 21 25 24 24 25 25 24 25 25 24 23 21 18 19 19 18 19 19 19 18 23 24 24 18 Final Capacity 25 | 8 10 10 25 25 25 25 25 25 25 25 25 25 25 25 25 25 25 25 25 25 25 25 25 25 25 25 25 25 25 25 25 25 25 25 25 25 25 5 Final Carried 25 | 1 8 10 25 23 24 24 25 25 25 25 25 25 19 25 25 25 25 25 25 25 25 25 25 23 23 18 19 19 19 19 19 19 20 18 25 25 23 4 Class Distribution -------------------- 53% | Golem 14% | Gunner 7% | Skirmisher 6% | Tank 5% | Mutant 4% | Commander-Golem 3% | Hacker-Golem Dominant Class ---------------- Mutant | -10/Materials Mutant | -10/Mines Tank | -9/Materials Tank | -9/Mines Scavenger-Tank | -9/Exiles Scavenger-Skirmisher | -8/Mines Tank | -8/Materials Skirmisher | -8/Garrison Skirmisher | -8/Materials Gunner | -8/Storage Skirmisher | -7/Factory Skirmisher | -7/Lower Caves Gunner | -7/Lower Caves Gunner | -7/Zion Gunner | -7/Deep Caves Golem | -6/Proximity Caves Golem | -6/Factory Golem | -6/Extension Golem | -6/Cetus Commander-Golem | -6/Archives Commander-Golem | -6/Hub_04(d) Golem | -5/Factory Golem | -5/Waste Golem | -5/Factory Golem | -5/Upper Caves Golem | -5/Upper Caves Golem | -5/Zhirov Golem | -4/Proximity Caves Golem | -4/Factory Golem | -4/Upper Caves Golem | -4/Upper Caves Golem | -4/Warlord Golem | -3/Proximity Caves Golem | -3/Research Golem | -3/Quarantine Golem | -2/Research Golem | -2/Testing Hacker-Golem | -2/Section 7 Resources | -11 -10 -10 -9 -9 -9 -8 -8 -8 -8 -8 -7 -7 -7 -7 -7 -6 -6 -6 -6 -6 -6 -5 -5 -5 -5 -5 -5 -4 -4 -4 -4 -4 -3 -3 -3 -2 -2 -2 ----------- Run | Yrd Mat Min Mat Min Exi Min Mat Gar Mat Sto Fac Low Low Zio Dee Pro Fac Ext Cet Arc Hub Fac Was Fac Upp Upp Zhi Pro Fac Upp Upp War Pro Res Qua Res Tes Sec Matter Collected 6001 | 197 127 56 120 178 . 46 105 637 916 1136 211 161 212 30 706 . . 5 20 . . . . 80 75 75 38 219 38 18 51 . 21 26 114 125 54 204 Remotely . | . . . . . . . . . . . . . . . . . . . . . . . . . . . . . . . . . . . . . . . Salvage Created 29271 | . 218 359 1033 220 . 32 105 718 1512 1825 211 146 238 . 1290 267 . 1368 243 290 569 118 289 1440 382 312 123 694 942 1025 806 . 670 1669 2309 2907 3395 1546 Parts 1386 | . 24 16 64 4 . 5 8 62 63 99 11 13 15 . 23 8 . 68 15 8 43 8 3 76 21 17 . 41 52 39 37 . 24 65 143 116 117 78 Haulers Intercepted 23 | . 1 . 6 . . . . . 4 6 1 . . . . . . . . . 1 . . 1 . . . . . . . . . 1 . . 2 . Recyclers Shooed 5 | . 1 . 1 . . . . . 1 . . . . . . . . 1 . . . . . 1 . . . . . . . . . . . . . . Parts Field Recycled . | . . . . . . . . . . . . . . . . . . . . . . . . . . . . . . . . . . . . . . . Retrieved Matter . | . . . . . . . . . . . . . . . . . . . . . . . . . . . . . . . . . . . . . . . Parts Self-Destructed 220 | . . . . . . . . . . . . 13 23 . . 9 . . . . . . . . 21 15 . 41 . 28 46 . 24 . . . . . Prevented 3 | . . . . . . . . . . . . . . . . . . . . . . . . . 3 . . . . . . . . . . . . . Parts Restored . | . . . . . . . . . . . . . . . . . . . . . . . . . . . . . . . . . . . . . . . Kills | -11 -10 -10 -9 -9 -9 -8 -8 -8 -8 -8 -7 -7 -7 -7 -7 -6 -6 -6 -6 -6 -6 -5 -5 -5 -5 -5 -5 -4 -4 -4 -4 -4 -3 -3 -3 -2 -2 -2 ------- Run | Yrd Mat Min Mat Min Exi Min Mat Gar Mat Sto Fac Low Low Zio Dee Pro Fac Ext Cet Arc Hub Fac Was Fac Upp Upp Zhi Pro Fac Upp Upp War Pro Res Qua Res Tes Sec Combat Hostiles Destroyed 487 | . 2 11 17 13 . 3 2 28 15 27 1 5 6 . 50 7 . 17 3 3 6 2 1 28 6 6 . 19 16 15 12 . 9 26 34 40 35 22 Melee 7 | . . . . . . . . . . . . . . . 5 . . . . . . . . . . 1 . . . . . . . . . . . 1 Guns 112 | . . 11 17 . . 3 2 20 15 27 1 5 6 . 5 . . . . . . . . . . . . . . . . . . . . . . . Cannons 299 | . . . . . . . . . . . . . . . 2 7 . 17 3 3 3 2 1 28 6 5 . 19 16 15 12 . 9 26 34 40 35 16 AOE 60 | . 2 . . 12 . . . 8 . . . . . . 35 . . . . . 3 . . . . . . . . . . . . . . . . . Classes Destroyed 31 | . 6 1 2 1 . . 1 1 1 3 . . . . 3 1 . 1 . . 1 . 1 . 1 1 . . . . . . . . . 3 2 1 Worker 19 | . 1 . . 1 . . . . . 7 . . . . . . . . . . 3 . . 1 . . . . 1 . . . . 3 1 . 1 . Builder 11 | . . . 4 . . . . . . . . . . . . . . 2 . . 2 . . 1 . . . . . . . . . . . . . 2 Tunneler 4 | . 2 . . . . . . . . . . . . . . . . . . . 2 . . . . . . . . . . . . . . . . . Hauler 23 | . 1 . 6 . . . . . 4 6 1 . . . . . . . . . 1 . . 1 . . . . . . . . . 1 . . 2 . Recycler 13 | . 1 . . 1 . . . . 7 1 1 . . . . . . 2 . . . . . . . . . . . . . . . . . . . . Minesweeper 1 | . . . . . . . . . . . . . . . . . . . . . . . . . 1 . . . . . . . . . . . . . Mechanic 1 | . . . . . . . . . . 1 . . . . . . . . . . . . . . . . . . . . . . . . . . . . Operator 6 | . . . . . . . . . . 1 . . . . . . . 2 . . . . . 1 . . . . . . . . . . . 1 . 1 Drone 1 | . . . . . . . . . . . . . . . . 1 . . . . . . . . . . . . . . . . . . . . . . Watcher 18 | . 1 . 1 . . . . 2 2 . 1 . . . . . . 2 1 . 2 . . 3 . . . . . . . . . . 2 . . 1 Swarmer 121 | . 2 4 5 . . 3 . 19 3 4 . 4 3 . . 4 . . . . 3 . . 15 . 2 . 14 4 . 3 . . 12 3 9 . 5 Cutter 2 | . . . . . . . . . . . . . . . . . . . . . . . . . . . . . . . . . . . . . . 2 Grunt 120 | . . 7 8 . . . . 5 4 9 . . 2 . . . . 10 . . . . . 5 3 . . . . 7 6 . 2 6 12 14 19 1 Brawler 6 | . . . . . . . . . . 1 . . . . . 1 . . . . . . . . . . . . . 1 1 . . . . 1 1 . Duelist 5 | . . . . . . . . . 2 . . . . . . . . . . . . . . . . . . . . 2 . . . . . . . 1 Researcher 3 | . . . . . . . . . . . . . . . . . . . . . . . . . . . . . . . . . . . . . 3 . Sentry 46 | . . . 4 . . . 1 2 4 12 1 . . . . 1 . 3 . 3 1 . . 2 1 . . 1 . 1 . . 1 4 . 1 3 . Demolisher 2 | . . . . . . . . . . . . . . . . . . . . . . . . . . . . . . . . . . . . 2 . . Hunter 50 | . . . . . . . 1 1 2 1 . 1 1 . . . . 3 . . . . . 4 2 . . 2 8 . 1 . 6 2 . 4 5 6 Programmer 41 | . . . . . . . . 1 . . . . . . . . . . . . 1 2 . 2 . . . 2 4 . . . . . 19 . 6 4 Heavy 1 | . . . . . . . . . . . . . . . . . . . . . 1 . . . . . . . . . . . . . . . . . Q-Series 3 | . . . . . . . . . . . . . . . . . . . . . . . . . . . . . . . . . . . . . 1 2 Behemoth 6 | . . . . . . . . . . . . . . . . . . 1 . . . . . . . 1 . . . 1 1 . . 2 . . . . Compactor 1 | . . . . . . . . . . . . . . . . . . . . . . . 1 . . . . . . . . . . . . . . . Cetus Guard 3 | . . . . . . . . . . . . . . . . . . . 3 . . . . . . . . . . . . . . . . . . . S7 Guard 1 | . . . . . . . . . . . . . . . . . . . . . . . . . . . . . . . . . . . . . . 1 Striker 3 | . . . . . . . . . . . . . . . . . . . . . . . . . . . . . . . . . . . . 3 . . Executioner 6 | . . . . . . . . . . . . . . . . . . . . . . . . . . . . . . . . . . . . 6 . . Z-Technician 5 | . . . . . . . . . . . . . . . 5 . . . . . . . . . . . . . . . . . . . . . . . Z-Light 5 | . . . . . . . . . . . . . . . 5 . . . . . . . . . . . . . . . . . . . . . . . Master Thief 5 | . . . . . . . . . . . . . . . . . . . . . . . . . . 2 . . . 3 . . . . . . . . Assembler 2 | . . . . . . . . . . . . . . . 2 . . . . . . . . . . . . . . . . . . . . . . . Assembled 48 | . . . . 12 . . . . . . . . . . 36 . . . . . . . . . . . . . . . . . . . . . . . Golem 9 | . . . . . . . . . . . . . . . 8 . . . . . . . . . . 1 . . . . . . . . . . . . Thug 2 | . . . . 1 . . . . . . . . . . . . . . . 1 . . . . . . . . . . . . . . . . . . Best Kill Streak 34 | . 4 4 3 13 . 3 1 4 3 12 2 4 3 . 34 4 . 5 2 2 11 2 1 12 2 2 . 6 4 5 4 . 3 7 9 9 8 4 Combat Bots Only 32 | . 2 4 3 12 . 3 1 4 3 7 1 4 3 . 32 4 . 4 1 2 3 2 1 12 2 2 . 6 4 5 4 . 3 5 7 9 4 4 Max Kills in Single Turn 13 | . 2 1 2 5 . 2 1 4 1 2 1 1 1 . 13 2 . 2 1 1 6 1 1 2 1 1 . 1 2 2 1 . 2 2 1 2 2 1 Gunslinging 1 | . . . 1 . . 1 . 1 . 1 . . . . . . . . . . . . . . . . . . . . . . . . . . . . Exploded 13 | . 2 . . 5 . . . 4 . . . . . . 13 . . . . . 3 . . . . . . . . . . . . . . . . . Melee 1 | . . . . . . . . . . . . . . . 1 . . . . . . . . . . 1 . . . . . . . . . . . 1 Uniques/NPCs Destroyed 2 | . . . . 1 . . . . . . . . . . 1 . . . . . . . . . . . . . . . . . . . . . . . YI-UF0 (-9/Mines) Z-Imprinter (-7/Deep Caves) Combat | -11 -10 -10 -9 -9 -9 -8 -8 -8 -8 -8 -7 -7 -7 -7 -7 -6 -6 -6 -6 -6 -6 -5 -5 -5 -5 -5 -5 -4 -4 -4 -4 -4 -3 -3 -3 -2 -2 -2 -------- Run | Yrd Mat Min Mat Min Exi Min Mat Gar Mat Sto Fac Low Low Zio Dee Pro Fac Ext Cet Arc Hub Fac Was Fac Upp Upp Zhi Pro Fac Upp Upp War Pro Res Qua Res Tes Sec Hostile Shots Fired 3278 | . 11 41 33 18 . 7 16 63 34 62 18 28 26 . 105 48 . 118 26 2 68 126 31 199 22 67 . 193 214 74 121 107 62 106 187 198 467 380 Missed 1175 | . 5 9 10 3 . . 5 16 13 18 9 8 7 . 24 21 . 42 5 1 28 37 6 68 4 31 . 81 103 20 40 45 22 41 72 86 179 116 Hits 2103 | . 6 32 23 15 . 7 11 47 21 44 9 20 19 . 81 27 . 76 21 1 40 89 25 131 18 36 . 112 111 54 81 62 40 65 115 112 288 264 Melee 87 | . . . . . . . . . 1 . . . 4 . 5 . . . . . . . 25 . . 3 . . . 10 2 3 . . . 2 7 25 Projectile 2016 | . 6 32 23 15 . 7 11 47 20 44 9 20 15 . 76 27 . 76 21 1 40 89 . 131 18 33 . 112 111 44 79 59 40 65 115 110 281 239 AOE 17 | . . . . 10 . . . . . . . . . . . . . . . . . . . . . . . . 2 . . . . . . 3 . 2 Critical Strikes 109 | . . 3 1 1 . 1 . 1 2 3 . . . . . . . . 2 . 1 . 14 1 . . . 2 2 6 5 2 . 2 18 8 20 14 Part Disruptions 5 | . . . . . . . . . . . . . . . . . . . . . . . . . . . . . . . . 1 . . 2 . 2 . Damage Taken 37563 | . 51 363 295 562 . 56 108 519 334 582 136 241 236 . 2455 282 . 840 474 17 925 654 871 1839 251 653 . 1556 1303 976 1300 1379 474 1266 2204 2381 5427 6553 Core 3652 | . 16 105 71 50 . 9 . 25 29 15 5 42 28 . 320 20 . 56 99 17 110 24 97 178 17 27 . 70 78 88 128 101 74 112 127 155 835 524 Absorbed by Shields 249 | . . . . . . . 40 60 . . . . . . . . . 24 42 . . . . . . . . . . . . . . . 83 . . . Redirected to Shielding 270 | . . . . . . . . . . . . . . . 270 . . . . . . . . . . . . . . . . . . . . . . . Ignored by Resistances 5884 | . . . . . . . . . . . . . . . . 60 . 172 104 3 . 181 139 383 50 131 . 242 276 207 273 277 100 261 475 478 1036 1036 Regen/Repaired (Parts) 1824 | . . . 30 . . . 11 . . 871 . . 16 45 156 . . . . . . . . . . . . . . . . 84 . . . 109 . 502 Core Remaining (%) 67 | 100 . 51 . . . 67 . . . 87 . . . . . 40 . . . . 66 . . . . . . 58 . . . . 59 . 81 . . . Volleys Fired 1290 | . 25 29 56 9 . 3 10 53 60 78 12 10 16 . 67 11 29 45 19 6 14 9 7 71 10 30 . 67 51 26 29 2 17 45 72 90 118 94 Largest 3 | . 2 2 3 3 . 3 3 3 3 3 3 3 3 . 3 3 3 3 3 3 3 3 3 3 3 3 . 3 3 3 3 3 3 3 3 3 3 3 Hottest 168 | . 80 105 168 168 . 75 75 75 75 75 75 75 75 . 124 75 75 75 75 75 75 75 75 75 75 75 . 75 75 75 75 75 75 75 75 75 75 138 Shots Fired 3039 | . 47 58 168 15 . 9 30 151 180 235 36 28 48 . 132 29 35 122 39 18 40 25 18 122 27 49 2 96 109 77 78 6 42 128 191 242 276 131 Gun 1081 | . 44 58 168 9 . 9 30 147 180 235 36 27 48 . 90 . . . . . . . . . . . . . . . . . . . . . . . Cannon 1922 | . . . . . . . . . . . . . . . 24 29 35 121 39 18 40 25 18 122 27 49 2 96 109 77 78 6 42 128 191 242 276 128 Launcher 20 | . 3 . . 6 . . . 4 . . . . . . 7 . . . . . . . . . . . . . . . . . . . . . . . Special 16 | . . . . . . . . . . . . 1 . . 11 . . 1 . . . . . . . . . . . . . . . . . . . 3 Kinetic 789 | . . . . . . 9 30 147 180 235 36 27 48 . 77 . . . . . . . . . . . . . . . . . . . . . . . Thermal 2182 | . 44 58 168 9 . . . . . . . . . . 13 29 35 121 39 18 40 25 18 122 27 49 2 96 109 77 78 6 42 128 191 242 276 120 Explosive 31 | . 3 . . 6 . . . 4 . . . . . . 18 . . . . . . . . . . . . . . . . . . . . . . . Electromagnetic 32 | . . . . . . . . . . . . . . . 24 . . . . . . . . . . . . . . . . . . . . . . 8 Robot Hit Streak 47 | . 5 11 14 3 . 4 6 12 12 17 20 13 6 . 32 8 . 15 7 6 21 8 15 15 5 13 . 5 9 15 15 2 14 47 28 17 31 30 Robot Miss Streak 10 | . 3 2 7 2 . 4 3 4 3 3 2 3 5 . 3 3 . 3 2 3 1 1 1 3 1 3 . 7 4 1 3 2 1 2 2 4 2 10 Penetration Max . | . . . . . . . . . . . . . . . . . . . . . . . . . . . . . . . . . . . . . . . Secondary Targets 19 | . . 1 4 . . 1 . 5 2 2 . 3 1 . . . . . . . . . . . . . . . . . . . . . . . . . Max Gunslinging Chain 2 | . . 1 2 . . 1 . 1 1 1 . 1 1 . . . . . . . . . . . . . . . . . . . . . . . . . Shots Hit Robots 1843 | . 27 39 99 6 . 4 18 87 118 153 25 19 26 . 108 18 . 67 24 9 19 15 16 58 15 50 1 33 49 58 47 3 29 82 114 139 182 86 Core Hits 951 | . 12 19 39 31 . 3 4 41 46 65 9 10 15 . 121 8 1 30 10 6 17 4 2 38 10 22 1 21 21 23 21 . 16 44 57 72 73 39 Critical Kills 3 | . . . . . . . . . 1 1 . . . . 1 . . . . . . . . . . . . . . . . . . . . . . . Critical Parts Destroyed 1 | . . . . . . . . . . 1 . . . . . . . . . . . . . . . . . . . . . . . . . . . . Critical Strikes 16 | . . . 8 2 . . . . 1 2 . . . . 2 . . . . . . . . . . 1 . . . . . . . . . . . . Burn 10 | . . . 8 2 . . . . . . . . . . . . . . . . . . . . . . . . . . . . . . . . . . Destroy 4 | . . . . . . . . . 1 2 . . . . 1 . . . . . . . . . . . . . . . . . . . . . . . Impale 2 | . . . . . . . . . . . . . . . 1 . . . . . . . . . . 1 . . . . . . . . . . . . Melee Attacks 84 | . . . . . . . . 1 . . 2 . . . 49 . . . . . . . . . . 20 1 . . . . . . . . . . 11 Kinetic 11 | . . . . . . . . . . . . . . . . . . . . . . . . . . . . . . . . . . . . . . 11 Impact . | . . . . . . . . . . . . . . . . . . . . . . . . . . . . . . . . . . . . . . . Slashing 18 | . . . . . . . . 1 . . 2 . . . . . . . . . . . . . . 15 . . . . . . . . . . . . Piercing 55 | . . . . . . . . . . . . . . . 49 . . . . . . . . . . 5 1 . . . . . . . . . . . Sneak Attacks 2 | . . . . . . . . . . . . . . . . . . . . . . . . . . . . . . . . . . . . . . 2 Combat Hostiles 1 | . . . . . . . . . . . . . . . . . . . . . . . . . . . . . . . . . . . . . . 1 Follow-up Attacks . | . . . . . . . . . . . . . . . . . . . . . . . . . . . . . . . . . . . . . . . Damage Inflicted 73310 | . 592 445 1593 1054 . 74 256 1959 1953 2867 444 288 489 . 6751 916 50 3294 1191 502 2429 728 745 3017 708 1841 68 1633 2371 2837 2190 151 1340 4138 5727 6782 8337 3550 Guns 11313 | . 278 445 1593 100 . 74 256 1481 1953 2867 444 288 489 . 1045 . . . . . . . . . . . . . . . . . . . . . . . Cannons 52357 | . . . . . . . . . . . . . . . 152 916 50 3283 1191 502 880 728 745 3005 708 1549 . 1633 2371 2794 2190 151 1340 4130 5727 6782 8337 3193 Explosions 7504 | . 314 . . 954 . . . 478 . . . . . . 4209 . . . . . 1549 . . . . . . . . . . . . . . . . . Melee 1762 | . . . . . . . . . . . . . . . 1081 . . . . . . . . . . 292 68 . . . . . . . . . . 321 Ramming 110 | . . . . . . . . . . . . . . . . . . 11 . . . . . 12 . . . . . 43 . . . 8 . . . 36 Kinetic 9013 | . . . . . . 74 256 1481 1953 2867 444 288 489 . 840 . . . . . . . . . . . . . . . . . . . . . . 321 Thermal 54541 | . 278 445 1593 100 . . . . . . . . . . . 916 50 3283 1191 502 880 728 745 3005 708 1549 . 1633 2371 2794 2190 151 1340 4130 5727 6782 8337 3113 Explosive 5955 | . 314 . . 954 . . . 478 . . . . . . 4209 . . . . . . . . . . . . . . . . . . . . . . . Electromagnetic 1986 | . . . . . . . . . . . . . . . 357 . . . . . 1549 . . . . . . . . . . . . . . . . 80 Impact . | . . . . . . . . . . . . . . . . . . . . . . . . . . . . . . . . . . . . . . . Slashing 396 | . . . . . . . . . . . . . . . 264 . . . . . . . . . . 132 . . . . . . . . . . . . Piercing 1309 | . . . . . . . . . . . . . . . 1081 . . . . . . . . . . 160 68 . . . . . . . . . . . Highest Corruption 48 | . . . . . . . . 1 1 2 . . . . . . . . . . 1 27 47 48 48 48 48 48 6 6 6 6 1 . 12 . 14 32 Average Corruption 18 | . . . . . . . . 1 1 1 . . . . . . . . . . 1 2 35 47 48 48 48 48 4 6 6 5 1 . 9 . 4 19 Corruption Purged . | . . . . . . . . . . . . . . . . . . . . . . . . . . . . . . . . . . . . . . . Corruption Blocked . | . . . . . . . . . . . . . . . . . . . . . . . . . . . . . . . . . . . . . . . Effects 663 | . . . . . . . . 2 5 11 . . . . . . . . . . 1 2 18 84 53 33 48 95 16 29 37 2 15 . 82 . 43 87 Message Errors 158 | . . . . . . . . 2 2 3 . . . . . . . . . . 1 . 5 22 11 6 14 20 6 8 10 . 3 . 18 . 10 17 Matter Fused 135 | . . . . . . . . . . 1 . . . . . . . . . . . . 1 9 8 7 11 22 5 3 8 1 5 . 24 . 5 25 Heat Flow Errors 78 | . . . . . . . . . . 2 . . . . . . . . . . . . 1 6 6 8 9 13 3 3 2 . 2 . 8 . 5 10 Energy Discharges 79 | . . . . . . . . . . 1 . . . . . . . . . . . . 2 7 13 . 9 13 1 6 3 1 2 . 12 . 5 4 Parts Rejected 3 | . . . . . . . . . 1 . . . . . . . . . . . . . . . . . . . . . . . . . . . . 2 Parts Fused 1 | . . . . . . . . . . . . . . . . . . . . . . . . . . 1 . . . . . . . . . . . . Data Loss (minor) 76 | . . . . . . . . . 1 2 . . . . . . . . . . . 1 2 10 4 5 2 7 . 4 7 . 2 . 8 . 9 12 Data Loss (major) 22 | . . . . . . . . . 1 1 . . . . . . . . . . . . . 3 4 . . 3 . 1 . . . . 3 . 2 4 Misfires 25 | . . . . . . . . . . 1 . . . . . . . . . . . . . 4 3 1 2 2 . 2 3 . 1 . 2 . 2 2 Alerts 11 | . . . . . . . . . . . . . . . . . . . . . . . . 2 . 2 1 1 . . . . . . 2 . 1 2 Misdirections 11 | . . . . . . . . . . . . . . . . . . . . . . 1 4 2 . . . 1 . . . . . . . . . 3 Weapon Failures 64 | . . . . . . . . . . . . . . . . . . . . . . . 3 19 4 3 . 13 1 2 4 . . . 5 . 4 6 Overload Shots . | . . . . . . . . . . . . . . . . . . . . . . . . . . . . . . . . . . . . . . . Overflow Damage 2097 | . 23 . . 26 . . . 40 . . . . . . 277 42 . 187 32 . 190 10 . 121 14 15 . 45 74 166 22 . 5 45 272 152 214 125 Projectiles 1569 | . . . . . . . . . . . . . . . 10 42 . 187 32 . 56 10 . 121 14 15 . 45 74 166 22 . 5 45 272 152 214 87 Explosions 490 | . 23 . . 26 . . . 40 . . . . . . 267 . . . . . 134 . . . . . . . . . . . . . . . . . Melee 38 | . . . . . . . . . . . . . . . . . . . . . . . . . . . . . . . . . . . . . . 38 Knockbacks 3 | . . . . . . . . . . . . . . . . . . . . . . . . . . . . . . 1 . . . 1 . . . 1 Impact 3 | . . . . . . . . . . . . . . . . . . . . . . . . . . . . . . 1 . . . 1 . . . 1 Kinetic . | . . . . . . . . . . . . . . . . . . . . . . . . . . . . . . . . . . . . . . . Secondary . | . . . . . . . . . . . . . . . . . . . . . . . . . . . . . . . . . . . . . . . Self-Inflicted Damage 283 | . . . . 41 . . . 25 . . . . . . 52 . . . . . 165 . . . . . . . . . . . . . . . . . Shots 5 | . . . . 1 . . . 1 . . . . . . 1 . . . . . 2 . . . . . . . . . . . . . . . . . Rammed . | . . . . . . . . . . . . . . . . . . . . . . . . . . . . . . . . . . . . . . . Targets Rammed 11 | . . . . . . . . . . . . . . . . . . 1 . . . . . 1 . . . . . 5 . . . 1 . . . 3 Kicked 11 | . . . . . . . . . . . . . . . . . . 1 . . . . . 1 . . . . . 5 . . . 1 . . . 3 Crushed . | . . . . . . . . . . . . . . . . . . . . . . . . . . . . . . . . . . . . . . . Highest Temperature 344 | . 126 129 344 159 . 20 235 281 94 188 3 . 30 . 72 . . . . . . . 210 238 216 227 218 255 190 231 35 . 145 . 110 170 258 200 Average Temperature 70 | . 62 35 116 61 . 10 108 68 11 27 3 . 15 . 15 . . . . . . . 125 100 113 107 102 108 104 95 31 . 73 . 53 115 119 92 Received Heat Transfer 4601 | . . 162 99 78 . . 6 126 99 243 18 . 9 . 327 36 . 232 27 . 174 . . 201 63 72 . 18 . 223 277 177 18 165 240 252 998 261 Effects 3 | . . . 2 . . . . . . . . . . . . . . . . . . . . . . . . . . . . . . . . . . 1 Energy Bleed 2 | . . . 1 . . . . . . . . . . . . . . . . . . . . . . . . . . . . . . . . . . 1 Short Circuit 1 | . . . 1 . . . . . . . . . . . . . . . . . . . . . . . . . . . . . . . . . . . Siege Activations . | . . . . . . . . . . . . . . . . . . . . . . . . . . . . . . . . . . . . . . . Martial Activations . | . . . . . . . . . . . . . . . . . . . . . . . . . . . . . . . . . . . . . . . Shielding Activations . | . . . . . . . . . . . . . . . . . . . . . . . . . . . . . . . . . . . . . . . Robots Disrupted . | . . . . . . . . . . . . . . . . . . . . . . . . . . . . . . . . . . . . . . . Combat Hostiles . | . . . . . . . . . . . . . . . . . . . . . . . . . . . . . . . . . . . . . . . Robots Corrupted 3 | . . . . . . . . . . . . . . . 3 . . . . . . . . . . . . . . . . . . . . . . . Combat Hostiles 3 | . . . . . . . . . . . . . . . 3 . . . . . . . . . . . . . . . . . . . . . . . Parts Fried 4 | . . . . . . . . . . . . . . . . . . . . . 4 . . . . . . . . . . . . . . . . . Impact Corruptions 1 | . . . . . . . . . . . . . . . . . . . . . . . . . . . . . . 1 . . . . . . . . Robots Melted 1 | . . . . 1 . . . . . . . . . . . . . . . . . . . . . . . . . . . . . . . . . . Combat Hostiles 1 | . . . . 1 . . . . . . . . . . . . . . . . . . . . . . . . . . . . . . . . . . Parts Melted 55 | . . 2 7 1 . . . . . . . . . . . . . 5 . . 2 2 . 5 1 . . 1 . 3 1 . 1 6 4 5 9 . Heat Transferred 34124 | . 625 1047 4113 370 . . . . . . . . . . . 475 25 1875 675 262 475 166 400 1650 375 825 . 875 1275 1525 1175 36 750 2250 2925 3480 4575 1900 Parts Sabotaged . | . . . . . . . . . . . . . . . . . . . . . . . . . . . . . . . . . . . . . . . Parts Stolen 8 | . . . . . . . . . . . . . 3 . . . . . . . . . . . . 3 . . . 2 . . . . . . . . Parts Stripped 47 | . . . . . . . . . . . . . . . . . . . . . . . . . . . . . . . . . . . . . . 47 Power Chain Reactions 3 | . . . . . . . . . . . . . . . . . . . . . 3 . . . . . . . . . . . . . . . . . Alert | -11 -10 -10 -9 -9 -9 -8 -8 -8 -8 -8 -7 -7 -7 -7 -7 -6 -6 -6 -6 -6 -6 -5 -5 -5 -5 -5 -5 -4 -4 -4 -4 -4 -3 -3 -3 -2 -2 -2 ------- Run | Yrd Mat Min Mat Min Exi Min Mat Gar Mat Sto Fac Low Low Zio Dee Pro Fac Ext Cet Arc Hub Fac Was Fac Upp Upp Zhi Pro Fac Upp Upp War Pro Res Qua Res Tes Sec Maximum Alert Level 4 | . . 1 1 . . . . 3 2 2 1 . . . . . . 1 . 1 3 2 . 2 . . . . 1 . . . . 1 1 4 4 3 Low Security (%) 42 | 100 100 81 41 100 . 100 100 34 . 8 85 . . . . . 100 77 100 89 89 6 100 43 . . . . 79 . . . . 39 23 9 . . Level 1 24 | . . 18 58 . . . . 14 . 25 14 . . . . . . 23 . 10 . 76 . 10 . . . . 20 . . . . 60 76 39 . . Level 2 16 | . . . . . . . . 12 100 65 . . . . . . . . . . . 16 . 46 . . . . . . . . . . . 24 5 39 Level 3 12 | . . . . . . . . 37 . . . . . . . . . . . . 10 . . . . . . . . . . . . . . 20 53 60 Level 4 3 | . . . . . . . . . . . . . . . . . . . . . . . . . . . . . . . . . . . . 6 40 . Level 5 . | . . . . . . . . . . . . . . . . . . . . . . . . . . . . . . . . . . . . . . . High Security . | . . . . . . . . . . . . . . . . . . . . . . . . . . . . . . . . . . . . . . . Max Security . | . . . . . . . . . . . . . . . . . . . . . . . . . . . . . . . . . . . . . . . Peak Influence 1454 | . 66 225 374 126 . 76 31 935 612 535 232 . . . . . 150 297 182 239 960 455 30 520 . . . . 294 . . . . 336 399 1275 1454 842 Initial 762 | . . 21 64 126 . . . 14 455 248 232 . . . . . 150 21 136 50 . 455 30 . . . . . . . . . . . 90 193 711 762 Average 337 | . 6 98 234 36 . 10 3 477 500 403 104 . . . . . 69 101 88 90 140 296 5 284 . . . . 81 . . . . 210 265 532 1015 722 Influence Increases 16250 | . 98 426 730 57 . 76 63 921 507 852 65 122 254 . . 183 265 1001 314 209 1216 58 4 930 135 80 5 445 500 296 290 15 210 752 984 1691 1486 1010 Destroy 0b10 Robot/C 9240 | . 40 240 440 . . 60 40 560 300 540 20 100 200 . . 140 20 540 160 80 200 40 . 560 120 60 . 380 320 240 240 . 180 520 680 800 880 540 Destroy 0b10 Robot/NC 525 | . 30 . 70 10 . . . 10 65 80 15 . . . . 10 . 45 10 . 50 . . 35 5 . 5 . 5 . . . . 20 15 5 20 20 Destroy Leader 1694 | . 14 40 130 . . 10 20 20 102 172 14 20 40 . . 10 10 74 . . 66 10 . 108 10 20 . 50 70 20 50 . 30 122 94 160 116 92 Allied During Kill 622 | . . 11 33 2 . . . . . . . 2 14 . . 8 2 169 102 80 115 . . . . . . . . 6 . . . . . . 44 34 Successful Hack 92 | . 4 . 24 . . 6 2 . 7 21 14 . . . . . . 14 . . . . . . . . . . . . . . . . . . . . Select Force Hacks 50 | . . . . . . . . . . . . . . . . . . . . . 50 . . . . . . . . . . . . . . . . . Disable Machine 1185 | . . . 30 . . . . 15 30 30 . . . . . . 45 105 15 45 285 . . 75 . . . . 15 . . . . 30 105 60 180 120 Anti-Garrison Action 800 | . . . . . . . . 200 . . . . . . . . . . . . 150 . . . . . . . . . . . . . . 450 . . Destroy Structure 1337 | . 10 . 3 45 . . 1 71 3 9 2 . . . . . 38 39 27 4 270 8 4 92 . . . . 90 . . . . 60 90 186 171 114 Advance Influence 150 | . . . . . . . . . . . . . . . . . 150 . . . . . . . . . . . . . . . . . . . . . Lose Combat Pursuer 555 | . . 135 . . . . . 45 . . . . . . . 15 . 15 . . 30 . . 60 . . . 15 . 30 . 15 . . . 30 75 90 Influence Decreases 15588 | . 42 317 571 381 . 76 41 8 854 929 565 133 254 . . 183 222 800 432 335 285 902 91 461 564 120 5 445 218 468 338 62 225 592 799 770 1395 1705 Entered New Map 3942 | . . 35 101 198 . . . 8 480 340 279 5 . . . . . 22 108 76 . 476 57 . 174 8 . . . 105 21 62 15 . 70 152 555 595 Time Decay 9841 | . 42 272 470 143 . 76 41 . 374 589 286 128 254 . . 183 222 549 272 259 185 326 34 427 380 112 5 405 168 333 247 . 200 412 659 598 610 580 Lost Part 1154 | . . 10 . 20 . . . . . . . . . . . . . 10 10 . 20 100 . 34 10 . . 40 50 30 30 . 10 30 70 20 210 450 Lost Ally 501 | . . . . 20 . . . . . . . . . . . . . 219 42 . 80 . . . . . . . . . 40 . . . . . 20 80 Purge Threat 150 | . . . . . . . . . . . . . . . . . . . . . . . . . . . . . . . . . . 150 . . . . Squads Dispatched 66 | . . 1 1 . . . . . 1 3 3 . . . . . 2 4 . . 6 2 . 2 . . . . 2 . . . . 4 10 . 13 12 Investigation 7 | . . 1 . . . . . . 1 1 1 . . . . . . 1 . . 1 . . . . . . . . . . . . 1 . . . . Extermination 22 | . . . . . . . . . . . 1 . . . . . 1 . . . 1 1 . 1 . . . . 1 . . . . . 7 . 4 5 Reinforcement 32 | . . . 1 . . . . . . 2 1 . . . . . 1 3 . . 2 1 . . . . . . 1 . . . . 3 3 . 8 6 Assault 5 | . . . . . . . . . . . . . . . . . . . . . 2 . . 1 . . . . . . . . . . . . 1 1 Garrison . | . . . . . . . . . . . . . . . . . . . . . . . . . . . . . . . . . . . . . . . Intercept . | . . . . . . . . . . . . . . . . . . . . . . . . . . . . . . . . . . . . . . . Searches Triggered . | . . . . . . . . . . . . . . . . . . . . . . . . . . . . . . . . . . . . . . . Unchained Authorized 1 | . . . . . . . . . . . . . . . . . . . . . . 1 . . . . . . . . . . . . . . . . Construction Impeded 3 | . . . . . . . . . . . . . . . . . . . . . 1 . . . . . . . . . . . . . 1 . . 1 Haulers Reinforced 3 | . . . . . . . . . . . . . . . . . . . . . . . . . . . . . 1 . . . . 1 . . 1 . Active Scanning Responses . | . . . . . . . . . . . . . . . . . . . . . . . . . . . . . . . . . . . . . . . Cargo Convoy Interrupts . | . . . . . . . . . . . . . . . . . . . . . . . . . . . . . . . . . . . . . . . Stealth | -11 -10 -10 -9 -9 -9 -8 -8 -8 -8 -8 -7 -7 -7 -7 -7 -6 -6 -6 -6 -6 -6 -5 -5 -5 -5 -5 -5 -4 -4 -4 -4 -4 -3 -3 -3 -2 -2 -2 --------- Run | Yrd Mat Min Mat Min Exi Min Mat Gar Mat Sto Fac Low Low Zio Dee Pro Fac Ext Cet Arc Hub Fac Was Fac Upp Upp Zhi Pro Fac Upp Upp War Pro Res Qua Res Tes Sec Distress Signals 47 | . . . 4 . . . . 1 3 2 . . . . . . . . 2 . . . . 5 . . . . 1 . . 2 . 12 . 8 5 2 Communications Jammed . | . . . . . . . . . . . . . . . . . . . . . . . . . . . . . . . . . . . . . . . Distress Signals . | . . . . . . . . . . . . . . . . . . . . . . . . . . . . . . . . . . . . . . . Times Spotted 752 | . 5 17 27 13 . 3 3 31 22 30 3 6 15 . 62 9 . 36 10 4 18 3 6 42 5 9 . 20 18 17 14 23 9 40 40 53 62 77 Peak Tracking Total 37 | . 3 3 4 19 . 3 1 4 4 5 2 4 4 . 37 4 . 4 5 1 11 1 5 9 2 4 . 5 5 6 4 21 3 8 5 8 6 12 Tactical Retreats 23 | . . 4 . . . . . 1 . . . . . . 1 1 . 1 . . 1 . . 3 . . . 1 . 1 . 1 . . . 2 4 2 Traps | -11 -10 -10 -9 -9 -9 -8 -8 -8 -8 -8 -7 -7 -7 -7 -7 -6 -6 -6 -6 -6 -6 -5 -5 -5 -5 -5 -5 -4 -4 -4 -4 -4 -3 -3 -3 -2 -2 -2 ------- Run | Yrd Mat Min Mat Min Exi Min Mat Gar Mat Sto Fac Low Low Zio Dee Pro Fac Ext Cet Arc Hub Fac Was Fac Upp Upp Zhi Pro Fac Upp Upp War Pro Res Qua Res Tes Sec Traps Triggered 35 | . . . . . . . . 10 1 2 2 . . . . . . 6 . . . 1 . 1 . . . . 2 . . . . . 4 . 2 4 Indirectly . | . . . . . . . . . . . . . . . . . . . . . . . . . . . . . . . . . . . . . . . Trap Hack Attempts . | . . . . . . . . . . . . . . . . . . . . . . . . . . . . . . . . . . . . . . . Triggered . | . . . . . . . . . . . . . . . . . . . . . . . . . . . . . . . . . . . . . . . Disarmed . | . . . . . . . . . . . . . . . . . . . . . . . . . . . . . . . . . . . . . . . Reprogrammed . | . . . . . . . . . . . . . . . . . . . . . . . . . . . . . . . . . . . . . . . Reused . | . . . . . . . . . . . . . . . . . . . . . . . . . . . . . . . . . . . . . . . Traps Extracted . | . . . . . . . . . . . . . . . . . . . . . . . . . . . . . . . . . . . . . . . Installed . | . . . . . . . . . . . . . . . . . . . . . . . . . . . . . . . . . . . . . . . Triggered . | . . . . . . . . . . . . . . . . . . . . . . . . . . . . . . . . . . . . . . . Machines | -11 -10 -10 -9 -9 -9 -8 -8 -8 -8 -8 -7 -7 -7 -7 -7 -6 -6 -6 -6 -6 -6 -5 -5 -5 -5 -5 -5 -4 -4 -4 -4 -4 -3 -3 -3 -2 -2 -2 ---------- Run | Yrd Mat Min Mat Min Exi Min Mat Gar Mat Sto Fac Low Low Zio Dee Pro Fac Ext Cet Arc Hub Fac Was Fac Upp Upp Zhi Pro Fac Upp Upp War Pro Res Qua Res Tes Sec Machines Disabled 96 | . 2 . 2 . . . . 4 2 2 . . . 3 3 . 3 8 1 3 20 . . 5 . . . . 1 . . . . 2 7 7 13 8 Max in Single Turn 13 | . 2 . 1 . . . . 2 2 1 . . . 1 1 . 1 1 1 1 13 . . 1 . . . . 1 . . . . 1 1 1 2 1 Garrison Access 6 | . . . . . . . . . . . . . . . . . . . . . 1 . . . . . . . . . . . . . . 3 1 1 Garrison Relay 1 | . . . . . . . . 1 . . . . . . . . . . . . . . . . . . . . . . . . . . . . . . Phase Generator 1 | . . . . . . . . 1 . . . . . . . . . . . . . . . . . . . . . . . . . . . . . . Network Hub 4 | . . . . . . . . . . . . . . . . . . . . . 4 . . . . . . . . . . . . . . . . . Machines Repaired . | . . . . . . . . . . . . . . . . . . . . . . . . . . . . . . . . . . . . . . . Machines Dismantled 5 | . . . . . . . . . . 2 . . . 3 . . . . . . . . . . . . . . . . . . . . . . . . Machines Sabotaged 1 | . . . . . . . . . . . . . . . . . . . . . 1 . . . . . . . . . . . . . . . . . Overloaded Fab Kills . | . . . . . . . . . . . . . . . . . . . . . . . . . . . . . . . . . . . . . . . Hacking | -11 -10 -10 -9 -9 -9 -8 -8 -8 -8 -8 -7 -7 -7 -7 -7 -6 -6 -6 -6 -6 -6 -5 -5 -5 -5 -5 -5 -4 -4 -4 -4 -4 -3 -3 -3 -2 -2 -2 --------- Run | Yrd Mat Min Mat Min Exi Min Mat Gar Mat Sto Fac Low Low Zio Dee Pro Fac Ext Cet Arc Hub Fac Was Fac Upp Upp Zhi Pro Fac Upp Upp War Pro Res Qua Res Tes Sec Machines Accessed 57 | . 1 1 8 . 1 1 2 2 3 10 3 1 . . . . . 6 . . 2 . . . . . 4 . . . . 1 . 1 4 3 2 1 Terminals 37 | . 1 . 6 . . 1 . 2 2 8 3 . . . . . . 6 . . 1 . . . . . . . . . . . . 1 3 2 1 . Fabricators . | . . . . . . . . . . . . . . . . . . . . . . . . . . . . . . . . . . . . . . . Repair Stations 4 | . . . 1 . . . 1 . . 2 . . . . . . . . . . . . . . . . . . . . . . . . . . . . Recycling Units . | . . . . . . . . . . . . . . . . . . . . . . . . . . . . . . . . . . . . . . . Scanalyzers 3 | . . . 1 . . . . . 1 . . . . . . . . . . . . . . . . . . . . . . . . . 1 . . . Garrison Access 5 | . . . . . . . 1 . . . . . . . . . . . . . 1 . . . . . . . . . . . . . . 1 1 1 Total Hacks 132 | . 1 1 13 . 1 3 6 4 4 30 4 1 . . . . . 11 . . 4 . . . . . 17 . . . . 1 . 4 9 12 3 3 Successful 74 | . 1 1 10 . 1 1 4 . 4 21 1 1 . . . . . 3 . . 1 . . . . . 17 . . . . 1 . 2 2 1 1 1 Failed 58 | . . . 3 . . 2 2 4 . 9 3 . . . . . . 8 . . 3 . . . . . . . . . . . . 2 7 11 2 2 Catastrophic 16 | . . . . . . . . 2 . 2 1 . . . . . . 3 . . 1 . . . . . . . . . . . . 1 2 2 1 1 Database Lockouts . | . . . . . . . . . . . . . . . . . . . . . . . . . . . . . . . . . . . . . . . Manual 31 | . 1 . 9 . 1 3 . . 1 2 2 . . . . . . 2 1 . 2 . . . . . . . . . . . . 4 2 1 . . Terminals 67 | . 1 . 9 . . 3 . 4 2 13 4 . . . . . . 11 . . 2 . . . . . . . . . . . . 4 6 6 2 . Fabricators . | . . . . . . . . . . . . . . . . . . . . . . . . . . . . . . . . . . . . . . . Repair Stations 23 | . . . 2 . . . 4 . . 17 . . . . . . . . . . . . . . . . . . . . . . . . . . . . Recycling Units . | . . . . . . . . . . . . . . . . . . . . . . . . . . . . . . . . . . . . . . . Scanalyzers 7 | . . . 2 . . . . . 2 . . . . . . . . . . . . . . . . . . . . . . . . . 3 . . . Garrison Access 14 | . . . . . . . 2 . . . . . . . . . . . . . 2 . . . . . . . . . . . . . . 6 1 3 Terminal Hacks 38 | . . 1 1 . 1 1 . . 2 6 1 1 . . . . . 3 . . . . . . . . 17 . . . . 1 . 2 . 1 . . Record 5 | . . . . . . . . . . . . . . . . . . . . . . . . . . . 5 . . . . . . . . . . . Part Schematic 4 | . . . . . . . . . . . . . . . . . . . . . . . . . . . 4 . . . . . . . . . . . Robot Analysis 5 | . . . . . . 1 . . . . . . . . . . . . . . . . . . . . 4 . . . . . . . . . . . Prototype ID Bank 4 | . . . . . . . . . . . . . . . . . . . . . . . . . . . 4 . . . . . . . . . . . Open Door 11 | . . 1 . . . . . . . 5 . 1 . . . . . 3 . . . . . . . . . . . . . 1 . . . . . . Open DSF 1 | . . . . . . . . . . . . . . . . . . . . . . . . . . . . . . . . . . . . 1 . . Branch Access Points 4 | . . . 1 . . . . . 2 1 . . . . . . . . . . . . . . . . . . . . . . . . . . . . Alert Level 1 | . . . . . . . . . . . . . . . . . . . . . . . . . . . . . . . . . . 1 . . . . Unreport Threat 1 | . . . . . . . . . . . . . . . . . . . . . . . . . . . . . . . . . . 1 . . . . Zone Layout 1 | . . . . . . . . . . . 1 . . . . . . . . . . . . . . . . . . . . . . . . . . . Proto ID Catalog 1 | . . . . . 1 . . . . . . . . . . . . . . . . . . . . . . . . . . . . . . . . . Fabricator Hacks . | . . . . . . . . . . . . . . . . . . . . . . . . . . . . . . . . . . . . . . . Repair Station Hacks 20 | . . . 2 . . . 3 . . 15 . . . . . . . . . . . . . . . . . . . . . . . . . . . . Scan Component 11 | . . . 1 . . . 2 . . 8 . . . . . . . . . . . . . . . . . . . . . . . . . . . . Repair 9 | . . . 1 . . . 1 . . 7 . . . . . . . . . . . . . . . . . . . . . . . . . . . . Recycling Unit Hacks . | . . . . . . . . . . . . . . . . . . . . . . . . . . . . . . . . . . . . . . . Scanalyzer 6 | . . . 2 . . . . . 2 . . . . . . . . . . . . . . . . . . . . . . . . . 2 . . . Insert Component 2 | . . . . . . . . . . . . . . . . . . . . . . . . . . . . . . . . . . . 2 . . . Retrieve Study 4 | . . . 2 . . . . . 2 . . . . . . . . . . . . . . . . . . . . . . . . . . . . . Garrison Access Hacks 3 | . . . . . . . 1 . . . . . . . . . . . . . . . . . . . . . . . . . . . . . 1 1 Unlock Access 1 | . . . . . . . 1 . . . . . . . . . . . . . . . . . . . . . . . . . . . . . . . Seal Access 2 | . . . . . . . . . . . . . . . . . . . . . . . . . . . . . . . . . . . . . 1 1 Unauthorized Hacks 7 | . 1 . 5 . . . . . . . . . . . . . . . . . 1 . . . . . . . . . . . . . . . . . Terminals 7 | . 1 . 5 . . . . . . . . . . . . . . . . . 1 . . . . . . . . . . . . . . . . . Skim 6 | . 1 . 5 . . . . . . . . . . . . . . . . . . . . . . . . . . . . . . . . . . . Sabotage 1 | . . . . . . . . . . . . . . . . . . . . . 1 . . . . . . . . . . . . . . . . . Fabricators . | . . . . . . . . . . . . . . . . . . . . . . . . . . . . . . . . . . . . . . . Repair Stations . | . . . . . . . . . . . . . . . . . . . . . . . . . . . . . . . . . . . . . . . Recycling Units . | . . . . . . . . . . . . . . . . . . . . . . . . . . . . . . . . . . . . . . . Scanalyzers . | . . . . . . . . . . . . . . . . . . . . . . . . . . . . . . . . . . . . . . . Garrison Access . | . . . . . . . . . . . . . . . . . . . . . . . . . . . . . . . . . . . . . . . Data Cores Recovered 1 | . . . . . . . . . . . . . . . . . . 1 . . . . . . . . . . . . . . . . . . . . Used . | . . . . . . . . . . . . . . . . . . . . . . . . . . . . . . . . . . . . . . . Hacking Detections 32 | . . . 5 . . 1 2 2 1 4 3 . . . . . . 4 . . 1 . . . . . . . . . . . . 1 4 3 1 . Full Trace Events 2 | . . . . . . . . . . 1 . . . . . . . 1 . . . . . . . . . . . . . . . . . . . . Feedback Events 1 | . . . . . . . . . . 1 . . . . . . . . . . . . . . . . . . . . . . . . . . . . Corruption 1 | . . . . . . . . . . 1 . . . . . . . . . . . . . . . . . . . . . . . . . . . . Feedback Blocked . | . . . . . . . . . . . . . . . . . . . . . . . . . . . . . . . . . . . . . . . Robot Schematics Acquired 4 | . . . . . . . . . . . . . . 2 . . . . . . . . . . . . . . . . . . . . . . 1 1 Robots Built . | . . . . . . . . . . . . . . . . . . . . . . . . . . . . . . . . . . . . . . . Authchips . | . . . . . . . . . . . . . . . . . . . . . . . . . . . . . . . . . . . . . . . Time . | . . . . . . . . . . . . . . . . . . . . . . . . . . . . . . . . . . . . . . . Total Robot Build Rating . | . . . . . . . . . . . . . . . . . . . . . . . . . . . . . . . . . . . . . . . Part Schematics Acquired 32 | . . . . . . . . . . . . . . 14 . . . . . . . . . . . . 4 . . . . . . . . . 13 1 Parts Built . | . . . . . . . . . . . . . . . . . . . . . . . . . . . . . . . . . . . . . . . Authchips . | . . . . . . . . . . . . . . . . . . . . . . . . . . . . . . . . . . . . . . . Time . | . . . . . . . . . . . . . . . . . . . . . . . . . . . . . . . . . . . . . . . Total Part Build Rating . | . . . . . . . . . . . . . . . . . . . . . . . . . . . . . . . . . . . . . . . Part Studies Acquired 3 | . . . 2 . . . . . 1 . . . . . . . . . . . . . . . . . . . . . . . . . . . . . Parts Repaired 9 | . . . 1 . . . 1 . . 7 . . . . . . . . . . . . . . . . . . . . . . . . . . . . Time 545 | . . . 26 . . . 136 . . 383 . . . . . . . . . . . . . . . . . . . . . . . . . . . . Parts Recycled . | . . . . . . . . . . . . . . . . . . . . . . . . . . . . . . . . . . . . . . . Recycled Matter . | . . . . . . . . . . . . . . . . . . . . . . . . . . . . . . . . . . . . . . . Retrieved Matter . | . . . . . . . . . . . . . . . . . . . . . . . . . . . . . . . . . . . . . . . Retrieved Components . | . . . . . . . . . . . . . . . . . . . . . . . . . . . . . . . . . . . . . . . Parts Scanalyzed . | . . . . . . . . . . . . . . . . . . . . . . . . . . . . . . . . . . . . . . . Part Schematics Acquired . | . . . . . . . . . . . . . . . . . . . . . . . . . . . . . . . . . . . . . . . Parts Damaged . | . . . . . . . . . . . . . . . . . . . . . . . . . . . . . . . . . . . . . . . Bothacking | -11 -10 -10 -9 -9 -9 -8 -8 -8 -8 -8 -7 -7 -7 -7 -7 -6 -6 -6 -6 -6 -6 -5 -5 -5 -5 -5 -5 -4 -4 -4 -4 -4 -3 -3 -3 -2 -2 -2 ------------ Run | Yrd Mat Min Mat Min Exi Min Mat Gar Mat Sto Fac Low Low Zio Dee Pro Fac Ext Cet Arc Hub Fac Was Fac Upp Upp Zhi Pro Fac Upp Upp War Pro Res Qua Res Tes Sec Used RIF Installer . | . . . . . . . . . . . . . . . . . . . . . . . . . . . . . . . . . . . . . . . Robots Hacked . | . . . . . . . . . . . . . . . . . . . . . . . . . . . . . . . . . . . . . . . Non-combat . | . . . . . . . . . . . . . . . . . . . . . . . . . . . . . . . . . . . . . . . Combat . | . . . . . . . . . . . . . . . . . . . . . . . . . . . . . . . . . . . . . . . Robot Hacks Applied . | . . . . . . . . . . . . . . . . . . . . . . . . . . . . . . . . . . . . . . . Relay Couplers Released 9 | . . . . . . . . 6 . . . . . . . . . . . . 2 . . . . . . . . . . . . . . 1 . . Machine Destruction 6 | . . . . . . . . 3 . . . . . . . . . . . . 2 . . . . . . . . . . . . . . 1 . . Programmers 3 | . . . . . . . . 3 . . . . . . . . . . . . . . . . . . . . . . . . . . . . . . Fabnet Peak Effective % . | . . . . . . . . . . . . . . . . . . . . . . . . . . . . . . . . . . . . . . . Robots Rewired 9 | . . . . . . . . . . . . . . . . . . 6 . . . . . . . . . . . 2 . . . . . . 1 . Allies Hacked 1 | . . . . . . . . . . . . . . . . . . . . . . . . . . . . . . . . . . . . . . 1 Hacks Repelled . | . . . . . . . . . . . . . . . . . . . . . . . . . . . . . . . . . . . . . . . Allies | -11 -10 -10 -9 -9 -9 -8 -8 -8 -8 -8 -7 -7 -7 -7 -7 -6 -6 -6 -6 -6 -6 -5 -5 -5 -5 -5 -5 -4 -4 -4 -4 -4 -3 -3 -3 -2 -2 -2 -------- Run | Yrd Mat Min Mat Min Exi Min Mat Gar Mat Sto Fac Low Low Zio Dee Pro Fac Ext Cet Arc Hub Fac Was Fac Upp Upp Zhi Pro Fac Upp Upp War Pro Res Qua Res Tes Sec Total Allies 33 | . . 1 . 3 . . . . . . . 1 . . . . . 16 5 . . . . . . . . . . 2 . . . . . . 1 4 Largest Group 8 | . . 1 1 4 . . . . . . . 1 1 1 1 1 1 8 7 6 4 . . . . . . . . 2 2 . . . . . 1 2 Highest-Rated Group 646 | . . 31 31 71 . . . . . . . 85 85 85 85 85 85 283 646 543 377 . . . . . . . . 60 60 . . . . . 112 164 Highest-Rated Ally 159 | . . 31 31 31 . . . . . . . 85 85 85 85 85 85 159 159 143 96 . . . . . . . . 30 30 . . . . . 112 82 Initial Warlord ECA Mod 6 | . . . . . . . . . 6 6 5 5 5 5 5 4 4 4 4 4 4 3 3 3 3 3 3 2 2 2 2 2 1 1 1 . . . Total Orders 13 | . . . . . . . . . . . . . . 2 10 . . . . . 1 . . . . . . . . . . . . . . . . . STAY 7 | . . . . . . . . . . . . . . 1 5 . . . . . 1 . . . . . . . . . . . . . . . . . FOLLOW 6 | . . . . . . . . . . . . . . 1 5 . . . . . . . . . . . . . . . . . . . . . . . Ally Attacks 395 | . . 5 33 16 . . . . . . . . 10 . 47 4 1 151 44 14 21 . . . . . . . . . 2 . . . . . 21 26 Total Damage 12248 | . . 63 381 180 . . . . . . . . 369 . 2987 203 76 2660 1558 377 1091 . . . . . . . . . . . . . . . 1424 879 Kills 68 | . . 1 8 1 . . . . . . . . 4 . 16 2 1 12 6 1 4 . . . . . . . . . . . . . . . 7 5 Allies Corrupted 4 | . . . . . . . . . . . . . . . . . . 1 . . 3 . . . . . . . . . . . . . . . . . Allies Melted . | . . . . . . . . . . . . . . . . . . . . . . . . . . . . . . . . . . . . . . . Field Lobotomies 5 | . . . . . . . . . . . . 1 . . . . . 1 . . . . . . . . . . . . . . . . . . . 3 Intel | -11 -10 -10 -9 -9 -9 -8 -8 -8 -8 -8 -7 -7 -7 -7 -7 -6 -6 -6 -6 -6 -6 -5 -5 -5 -5 -5 -5 -4 -4 -4 -4 -4 -3 -3 -3 -2 -2 -2 ------- Run | Yrd Mat Min Mat Min Exi Min Mat Gar Mat Sto Fac Low Low Zio Dee Pro Fac Ext Cet Arc Hub Fac Was Fac Upp Upp Zhi Pro Fac Upp Upp War Pro Res Qua Res Tes Sec Active Infowar (turns) 6822 | . . . . 2 . . 394 119 . . 628 994 11 . . . . . . . . . . . . . . . . . . . . . . 891 1984 1799 Optics 4674 | . . . . . . . . . . . . . . . . . . . . . . . . . . . . . . . . . . . . 891 1984 1799 Sensors 1635 | . . . . 2 . . . . . . 628 994 11 . . . . . . . . . . . . . . . . . . . . . . . . . Machine Analysis 513 | . . . . . . . 394 119 . . . . . . . . . . . . . . . . . . . . . . . . . . . . . . Robot Analysis Total 5 | . . . . . . 1 . . . . . . . . . . . . . . . . . . . . 4 . . . . . . . . . . . Derelict Logs Recovered 13 | . . 2 . 1 . . . . . . . 2 1 2 . 2 . . . . . . . . . 1 . 1 . . 1 . . . . . . . Drone Launches . | . . . . . . . . . . . . . . . . . . . . . . . . . . . . . . . . . . . . . . . Drone Recoveries . | . . . . . . . . . . . . . . . . . . . . . . . . . . . . . . . . . . . . . . . Exploration | -11 -10 -10 -9 -9 -9 -8 -8 -8 -8 -8 -7 -7 -7 -7 -7 -6 -6 -6 -6 -6 -6 -5 -5 -5 -5 -5 -5 -4 -4 -4 -4 -4 -3 -3 -3 -2 -2 -2 ------------- Run | Yrd Mat Min Mat Min Exi Min Mat Gar Mat Sto Fac Low Low Zio Dee Pro Fac Ext Cet Arc Hub Fac Was Fac Upp Upp Zhi Pro Fac Upp Upp War Pro Res Qua Res Tes Sec Turns Passed 43833 | 43 339 734 1190 496 308 576 612 1681 879 1840 629 994 898 2058 4100 1100 478 2000 636 699 838 723 234 1325 889 638 920 1483 860 918 1123 627 1732 1029 2517 1904 1984 1799 Spaces Moved 16552 | 45 317 552 450 331 216 386 227 857 346 700 318 587 504 949 1445 277 194 694 163 43 311 227 97 488 345 196 135 401 336 213 254 292 442 212 712 880 738 672 Core 12 | 10 . . . 1 . . . . . . . . . . . . . . . . . . . . . . . . . . . . . . . . . 1 Treads . | . . . . . . . . . . . . . . . . . . . . . . . . . . . . . . . . . . . . . . . Legs 8448 | . . . . . . . . . . . . . . . 127 277 194 694 163 43 311 227 97 488 345 196 135 401 336 213 254 292 442 212 712 880 738 671 Wheels 8092 | 35 317 552 450 330 216 386 227 857 346 700 318 587 504 949 1318 . . . . . . . . . . . . . . . . . . . . . . . Hover . | . . . . . . . . . . . . . . . . . . . . . . . . . . . . . . . . . . . . . . . Flight . | . . . . . . . . . . . . . . . . . . . . . . . . . . . . . . . . . . . . . . . Fastest Speed 50 | 50 80 80 95 115 130 145 145 145 160 160 160 160 160 160 160 210 210 210 210 240 240 210 180 180 210 210 210 210 210 210 210 210 180 210 210 175 150 150 Average Speed 177 | 73 80 80 132 135 140 145 145 158 160 160 160 160 160 160 165 210 210 210 234 240 240 216 209 214 211 210 210 222 210 210 217 211 210 210 211 180 177 203 Slowest Speed 2050 | 80 80 80 215 1600 145 145 145 160 160 160 160 160 160 160 210 210 210 210 240 240 240 240 210 300 300 210 210 300 240 210 240 240 240 210 240 210 275 2050 Overloaded Moves . | . . . . . . . . . . . . . . . . . . . . . . . . . . . . . . . . . . . . . . . Propulsion Burnouts . | . . . . . . . . . . . . . . . . . . . . . . . . . . . . . . . . . . . . . . . Robots Hopped . | . . . . . . . . . . . . . . . . . . . . . . . . . . . . . . . . . . . . . . . Potential Cave-ins 2 | . . . . . . . . . . . . . . . . . . . . . . . . . . . . . 2 . . . . . . . . . Cave-ins Triggered . | . . . . . . . . . . . . . . . . . . . . . . . . . . . . . . . . . . . . . . . Teleports 37 | . . . . . . . . . . . . . . . . . . . . . . . . . . . . . . . . . . . . 1 . 36 Exploration Rate (%) 52 | 4 43 89 56 69 60 83 23 80 36 94 8 76 66 80 81 52 7 85 67 67 29 5 79 19 46 51 60 63 13 44 44 46 66 16 77 53 87 35 Regions Visited 38 Branch Regions 25 Pre-discovered Areas 7 | . . . 1 1 . . . . . . . 1 . 1 . . . . . . . . . . . . 3 . . . . . . . . . . . Known Exits Taken 17 | . . . 1 . . 1 1 . 1 . 1 1 1 1 . . 1 . . . 1 . . 1 1 1 1 1 1 . . . . 1 . . . . Unknown Exits Taken 18 | 1 1 1 . 1 1 . . . . 1 . . . . 1 1 . 1 1 1 . . . . . . . . . 1 1 1 1 . 1 1 1 . Scrap Searched 24 | . . 1 . . . 1 . . . . . 1 2 4 . 3 . . . . . . . . 2 2 . 5 . 1 1 . 1 . . . . . Spaces Dug 120 | . . . . . . . . . . . 2 . . . 20 . 18 . . . 7 2 . 2 . . . 12 14 . . . . 3 12 17 9 2 Terrain Destroyed 1179 | . 10 . . 69 . . . 98 . . 2 . . . 73 10 19 29 10 2 340 7 2 46 11 14 2 59 51 16 27 3 12 32 46 93 59 37 Melee 2 | . . . . . . . . . . . 2 . . . . . . . . . . . . . . . . . . . . . . . . . . . Projectile 576 | . . . . . . . . . . . . . . . 12 10 19 29 10 2 14 7 2 46 11 14 2 59 51 16 27 3 12 32 46 67 59 26 AOE 601 | . 10 . . 69 . . . 98 . . . . . . 61 . . . . . 326 . . . . . . . . . . . . . . 26 . 11 Terrain Rammed . | . . . . . . . . . . . . . . . . . . . . . . . . . . . . . . . . . . . . . . . Walls Destroyed . | . . . . . . . . . . . . . . . . . . . . . . . . . . . . . . . . . . . . . . . Machines Disabled . | . . . . . . . . . . . . . . . . . . . . . . . . . . . . . . . . . . . . . . . Actions | -11 -10 -10 -9 -9 -9 -8 -8 -8 -8 -8 -7 -7 -7 -7 -7 -6 -6 -6 -6 -6 -6 -5 -5 -5 -5 -5 -5 -4 -4 -4 -4 -4 -3 -3 -3 -2 -2 -2 --------- Run | Yrd Mat Min Mat Min Exi Min Mat Gar Mat Sto Fac Low Low Zio Dee Pro Fac Ext Cet Arc Hub Fac Was Fac Upp Upp Zhi Pro Fac Upp Upp War Pro Res Qua Res Tes Sec Total 28688 | 51 354 791 918 364 223 399 502 1132 609 1303 422 630 579 1433 2981 776 233 1145 387 631 374 446 110 656 483 341 774 905 401 626 767 301 1214 701 1577 1007 1197 945 Wait 9930 | . 1 189 368 3 . 11 247 139 193 479 70 30 55 440 1332 484 8 317 199 574 47 203 5 84 126 83 627 426 14 310 474 4 748 433 762 16 296 133 Move 16511 | 44 316 551 449 330 215 385 226 852 345 699 317 586 503 948 1444 276 193 693 162 42 310 227 96 487 344 195 134 400 335 211 253 291 441 212 711 879 737 672 Hop . | . . . . . . . . . . . . . . . . . . . . . . . . . . . . . . . . . . . . . . . Pick Up 125 | 1 7 8 18 6 3 . 7 6 3 2 5 1 1 7 22 . 1 . 1 . 1 1 . . . 1 1 . . 3 . . 1 . 8 3 3 4 Fast Attach 68 | 6 . . 9 2 . . 1 3 2 15 2 . 1 3 3 . . . 2 . . . . 2 . 1 1 . . . . . . . 1 3 3 8 Attach 57 | . 2 1 2 7 1 . 2 2 1 . 3 . 1 . 15 . . 1 . . . . . 1 . 2 1 . . . . . . 1 . 1 1 12 Detach 26 | . 1 . 2 . . . . 1 . . . . . 1 4 . . 1 . . . . . . . 1 1 . . 1 1 . . 1 2 3 4 2 Swap 48 | . 2 4 3 3 . . 1 6 1 4 5 2 . 2 11 . . . . . . . . 1 . . . . . . . . . . . 2 . 1 Drop 266 | . . 9 11 4 4 . 8 13 4 10 6 1 2 4 32 5 2 9 4 9 2 6 . 9 3 8 8 12 1 7 10 4 7 9 16 10 12 5 Fire 1290 | . 25 29 56 9 . 3 10 53 60 78 12 10 16 . 67 11 29 45 19 6 14 9 7 71 10 30 . 67 51 26 29 2 17 45 72 90 118 94 Melee 84 | . . . . . . . . 1 . . 2 . . . 49 . . . . . . . . . . 20 1 . . . . . . . . . . 11 Ram 2 | . . . . . . . . . . . . . . . . . . . . . . . 2 . . . . . . . . . . . . . . . Kick 10 | . . . . . . . . . . . . . . . . . . 1 . . . . . 1 . . . . . 5 . . . . . . . 3 Crush . | . . . . . . . . . . . . . . . . . . . . . . . . . . . . . . . . . . . . . . . Escape Stasis 107 | . . . . . . . . 56 . . . . . . . . . 29 . . . . . . . . . . . . . . . . 5 . 17 . Rewire 120 | . . . . . . . . . . . . . . . 2 . . 49 . . . . . . . . . . . 63 . . . . . . 6 . Trap . | . . . . . . . . . . . . . . . . . . . . . . . . . . . . . . . . . . . . . . . Miscellaneous 44 | . . . . . . . . . . 16 . . . 28 . . . . . . . . . . . . . . . . . . . . . . . . Route ------- -11/Scrapyard -10/Materials (discovered 2 exits: *Mat / *Min) -10/Mines -9/Materials (discovered 5 exits: *Mat x3 / *Min x2) -9/Mines (discovered 4 exits: *Mat x2 / *Exi / *Zio) -9/Exiles -8/Mines (discovered 2 exits: *Mat x2) -8/Materials (discovered 2 exits: Sto / Gar) -8/Garrison (discovered 3 exits: *Mat x3) -8/Materials (discovered 2 exits: *Fac / *Sto) -8/Storage (discovered 2 exits: *Fac / Rec) -7/Factory -7/Lower Caves -7/Lower Caves (discovered 2 exits: [*Fac] / *Zio) -7/Zion -7/Deep Caves -6/Proximity Caves -6/Factory (discovered 4 exits: Fac / Low / *Ext x2) -6/Extension (discovered 2 exits: *Fac / *Cet) -6/Cetus (discovered 2 exits: *Fac / [*Arc]) -6/Archives -6/Hub_04(d) -5/Factory -5/Waste -5/Factory (discovered 2 exits: *Fac / *Upp) -5/Upper Caves -5/Upper Caves (discovered 2 exits: *Fac / *Zhi) -5/Zhirov -4/Proximity Caves -4/Factory (discovered 2 exits: *Res / *Upp) -4/Upper Caves -4/Upper Caves -4/Warlord -3/Proximity Caves -3/Research (discovered 2 exits: [*Arm] / *Qua) -3/Quarantine -2/Research (discovered 3 exits: *Acc x2 / *Tes) -2/Testing (discovered 3 exits: *Acc / *Sec / [*Frg]) -2/Section 7 History --------- Turn | Location | Event 31 | -11/Scrapyard | Discovered new exit (range 15) 44 | -11/Scrapyard | Entered Materials 157 | -10/Materials | Discovered new exit (range 16) 302 | -10/Materials | Build established: Mutant 340 | -10/Materials | Discovered new exit (range 16) 383 | -10/Materials | Entered Mines 389 | -10/Mines | Met a Derelict shopkeep closing up shop 504 | -10/Mines | Learned Materials stockpile data 754 | -10/Mines | Learned Materials terminal intel 757 | -10/Mines | Escorted by a lone wolf Derelict 831 | -10/Mines | Discovered new exit (range 11) 968 | -10/Mines | Received a Rocket Launcher from a helpful Derelict 1117 | -10/Mines | Entered Materials 1117 | -9/Materials | Accompanied by 1 ally 1117 | -9/Materials | Evolved 2 slots: Utility x1, Weapon x1 1119 | -9/Materials | Loaded intel: 12 terminal locations 1187 | -9/Materials | Identified exit to Mines 1348 | -9/Materials | Repaired Wheel 1557 | -9/Materials | Build established: Tank 1673 | -9/Materials | Discovered new exit (range 13) 1917 | -9/Materials | Identified exit to Materials 2009 | -9/Materials | Learned location of Zion (-7) 2307 | -9/Materials | Entered Mines 2307 | -9/Mines | Accompanied by 1 ally 2370 | -9/Mines | Assisted by bots powering up and referring to "LRC-V3" 2398 | -9/Mines | A Derelict revealed a hidden shortcut to a safe place 2497 | -9/Mines | Deemed a non-threat by the Exiles lab entrance 2497 | -9/Mines | Discovered new exit (range 5) 2560 | -9/Mines | Found a damaged Exp. Sensor Array with a note attached 2563 | -9/Mines | Found Prototype Device 2563 | -9/Mines | Identified Exp. Sensor Array 2590 | -9/Mines | YI-UF0 nonchalantly dropped a Grenade Launcher on the ground 2597 | -9/Mines | Destroyed YI-UF0 2628 | -9/Mines | Assembled infested the area 2654 | -9/Mines | Met 8R-AWN 2664 | -9/Mines | Destroyed 12 combat bots 2711 | -9/Mines | Lost 8 parts (1p2n2u3w) 2803 | -9/Mines | Entered Exiles 2835 | -9/Exiles | Welcomed by 8R-AWN 2858 | -9/Exiles | Met EX-HEX 2896 | -9/Exiles | Met EX-BIN 2914 | -9/Exiles | Aligned with FarCom system 2916 | -9/Exiles | Given EX-Vault access code 2952 | -9/Exiles | Opened EX-Vault 2960 | -9/Exiles | Found XL Autogun Array 2962 | -9/Exiles | Found Field Lobotomy Kit 2966 | -9/Exiles | Found Trap Reconfigurator 2995 | -9/Exiles | Warned to stay clear of 0b10 Research branches 3044 | -9/Exiles | Met EX-DEC 3096 | -9/Exiles | Discovered new exit (range 10) 3111 | -9/Exiles | Stole three prototypes: Trap Reconfigurator, XL Autogun Array, Field Lobotomy Kit 3111 | -9/Exiles | Entered Mines 3398 | -8/Mines | Build established: Scavenger-Skirmisher 3678 | -8/Mines | Discovered exit to Materials (range 7) 3687 | -8/Mines | Entered Materials 3687 | -8/Materials | Evolved 2 slots: Utility x2 3688 | -8/Materials | Identified exit to Storage 3846 | -8/Materials | Repaired Broken Exp. Sensor Array 4192 | -8/Materials | Build established: Tank 4297 | -8/Materials | Identified exit to Garrison 4299 | -8/Materials | Entered Garrison 4381 | -8/Garrison | Triggered checkpoint 4591 | -8/Garrison | Triggered checkpoint 4640 | -8/Garrison | Discovered new exit (range 12) 4707 | -8/Garrison | Triggered checkpoint 4730 | -8/Garrison | Garrison Relay disabled 4743 | -8/Garrison | Triggered checkpoint 4989 | -8/Garrison | Triggered checkpoint 5068 | -8/Garrison | Discovered new exit (range 12) 5186 | -8/Garrison | Phase Generator disabled 5219 | -8/Garrison | Build established: Skirmisher 5223 | -8/Garrison | Triggered checkpoint 5471 | -8/Garrison | Attempted to access garrison exit controls, blocked by remote lockdown 5604 | -8/Garrison | Attempted to access garrison exit controls, blocked by remote lockdown 5699 | -8/Garrison | Triggered checkpoint 5964 | -8/Garrison | Discovered new exit (range 11) 5980 | -8/Garrison | Entered Materials 6797 | -8/Materials | Discovered new exit (range 13) 6859 | -8/Materials | Entered Storage 6861 | -8/Storage | FarCom data flow suspended 7091 | -8/Storage | Repaired Enh. Autogun 7169 | -8/Storage | Repaired Broken Enh. Autogun 7230 | -8/Storage | Repaired Enh. Autogun 7241 | -8/Storage | Identified exit to Recycling 7414 | -8/Storage | Destroyed 7 combat bots 7543 | -8/Storage | Build established: Gunner 7916 | -8/Storage | Repaired Hrd. Heavy Armor Plating 7949 | -8/Storage | Repaired Cooling System 8011 | -8/Storage | Repaired Enh. Autogun 8063 | -8/Storage | Repaired Hvy. Ion Engine 8280 | -8/Storage | Found Prototype Protection 8280 | -8/Storage | Identified Lgt. Regenerative Plating 8304 | -8/Storage | Discovered new exit (range 9) 8699 | -8/Storage | Entered Factory 8699 | -7/Factory | Evolved 2 slots: Utility x2 9000 | -7/Factory | Build established: Skirmisher 9203 | -7/Factory | Discovered new exit (range 11) 9228 | -7/Factory | Identified exit to Lower Caves 9328 | -7/Factory | Entered Lower Caves 9342 | -7/Lower Caves | Met a Warlord Commander 9343 | -7/Lower Caves | Learned location of Warlord (-4) 9344 | -7/Lower Caves | Warlord Commander delivered Encrypted Comm Array 9433 | -7/Lower Caves | Spotted B-75 Beast 9436 | -7/Lower Caves | Assimilated B-75 Beast with FLK Orb 9459 | -7/Lower Caves | Identified exit to Lower Caves 9504 | -7/Lower Caves | Encountered a Warlord checkpoint 9934 | -7/Lower Caves | Learned 4 Factory zone layouts 10322 | -7/Lower Caves | Entered another Lower Caves area 10322 | -7/Lower Caves | Accompanied by 1 ally 10323 | -7/Lower Caves | XL Autogun Array stolen by Master Thief 10324 | -7/Lower Caves | Encountered a Master Thief 10324 | -7/Lower Caves | Encountered a Master Thief 10325 | -7/Lower Caves | Kinecellerator stolen by Master Thief 10333 | -7/Lower Caves | Encountered a Master Thief 10333 | -7/Lower Caves | Exp. Sensor Array stolen by Master Thief 10350 | -7/Lower Caves | Discovered new exit (range 10) 10619 | -7/Lower Caves | Build established: Gunner 10812 | -7/Lower Caves | Learned Factory interactive machine intel 10990 | -7/Lower Caves | Discovered new exit (range 8) 11200 | -7/Lower Caves | Identified exit to Zion 11220 | -7/Lower Caves | Entered Zion 11220 | -7/Zion | Accompanied by 1 ally 11360 | -7/Zion | Learned Factory stockpile data 12024 | -7/Zion | Discovered new exit (range 3) 12024 | -7/Zion | Saw the warning signs outside the Deep Caves entrance 12037 | -7/Zion | Identified exit to Deep Caves 12646 | -7/Zion | Learned location of 1 exit from Factory 13044 | -7/Zion | Found CR-A16's Pointy Stick 13130 | -7/Zion | Found Prototype Special Weapon 13132 | -7/Zion | Found Prototype Special Weapon 13136 | -7/Zion | Found Prototype Special Weapon 13136 | -7/Zion | Identified RU-N14's Throwing Claymores (x3) 13141 | -7/Zion | Found RU-N14's Throwing Claymores 13278 | -7/Zion | Entered Deep Caves 13278 | -7/Deep Caves | Accompanied by 1 ally 13421 | -7/Deep Caves | Z-Facility disabled 13442 | -7/Deep Caves | Attacked by Z-Imprinter 13451 | -7/Deep Caves | Destroyed Z-Imprinter 13496 | -7/Deep Caves | Found Prototype Protection 13496 | -7/Deep Caves | Identified Zio. Weapon Casing 13640 | -7/Deep Caves | Found Zio. Weapon Casing 14448 | -7/Deep Caves | Discovered new exit (range 6) 14630 | -7/Deep Caves | Spotted AG-47220 14674 | -7/Deep Caves | Destroyed AG-47220 14703 | -7/Deep Caves | Found GOLEM Unit 14833 | -7/Deep Caves | Spotted AG-13118 14873 | -7/Deep Caves | Core integrity fell below 50% 14874 | -7/Deep Caves | Destroyed AG-13118 15389 | -7/Deep Caves | Triggered Deep Caves wall 15389 | -7/Deep Caves | Spotted AS-11149 15390 | -7/Deep Caves | Exposed GOLEM chamber 15399 | -7/Deep Caves | Destroyed AS-11149 15405 | -7/Deep Caves | Spotted AS-70590 15411 | -7/Deep Caves | Destroyed AS-70590 15432 | -7/Deep Caves | Destroyed 32 combat bots 15709 | -7/Deep Caves | Build established: Mutant 15794 | -7/Deep Caves | Found GOLEM Unit 15802 | -7/Deep Caves | Found GOLEM Unit 15807 | -7/Deep Caves | Found GOLEM Unit 16090 | -7/Deep Caves | Found GOLEM Unit 16096 | -7/Deep Caves | Found GOLEM Unit 16103 | -7/Deep Caves | Found GOLEM Unit 16109 | -7/Deep Caves | Found GOLEM Unit 16114 | -7/Deep Caves | Found GOLEM Unit 16430 | -7/Deep Caves | Found GOLEM Unit 16436 | -7/Deep Caves | Found GOLEM Unit 16441 | -7/Deep Caves | Found GOLEM Unit 16447 | -7/Deep Caves | Found GOLEM Unit 16773 | -7/Deep Caves | Build established: Golem 16960 | -7/Deep Caves | Found GOLEM Unit 16998 | -7/Deep Caves | Found GOLEM Unit 17027 | -7/Deep Caves | Found GOLEM Unit 17037 | -7/Deep Caves | Found GOLEM Unit 17043 | -7/Deep Caves | Found GOLEM Unit 17378 | -7/Deep Caves | Entered Proximity Caves 17378 | -6/Proximity Caves | Accompanied by 1 ally 17454 | -6/Proximity Caves | Spotter reported a threat 17582 | -6/Proximity Caves | Learned location of 1 exit from Factory 17832 | -6/Proximity Caves | Learned 8 Factory zone layouts 17884 | -6/Proximity Caves | Attracted the attention of an 0b10 checkpoint 18411 | -6/Proximity Caves | Discovered new exit (range 6) 18478 | -6/Proximity Caves | Entered Factory 18478 | -6/Factory | Accompanied by 1 ally 18478 | -6/Factory | Evolved 2 slots: Power x1, Utility x1 18479 | -6/Factory | Identified exit to Lower Caves 18479 | -6/Factory | Identified exit to Extension 18480 | -6/Factory | Identified exit to Factory 18482 | -6/Factory | Loaded intel: 55 interactive machine locations 18956 | -6/Factory | Entered Extension 18956 | -6/Extension | Accompanied by 1 ally 19228 | -6/Extension | Rescued a captive Derelict 19283 | -6/Extension | Rescued a captive Derelict 19385 | -6/Extension | Rescued a captive Derelict 19385 | -6/Extension | Rescued a captive Derelict 19991 | -6/Extension | Spotted B-75 Beast 19993 | -6/Extension | Assimilated B-75 Beast with FLK Orb 20017 | -6/Extension | Spotted B-75 Beast 20031 | -6/Extension | Destroyed B-75 Beast 20069 | -6/Extension | Lost 3 allies 20379 | -6/Extension | Rescued a captive Derelict 20390 | -6/Extension | Rescued a captive Derelict 20565 | -6/Extension | Rescued a captive Derelict 20568 | -6/Extension | Rescued a captive Derelict 20607 | -6/Extension | Rescued A7 20670 | -6/Extension | Discovered exit to Factory (range 10) 20672 | -6/Extension | Discovered new exit (range 6) 20956 | -6/Extension | Entered Cetus 20956 | -6/Cetus | Accompanied by 4 allies (A7) 20961 | -6/Cetus | Acquired a Cetus Manufacturing Module code from A7 21082 | -6/Cetus | Spotted Cetus Guard 21082 | -6/Cetus | Spotted Cetus Guard 21087 | -6/Cetus | Spotted Cetus Guard 21089 | -6/Cetus | Destroyed Cetus Guard 21090 | -6/Cetus | Spotted Cetus Guard 21110 | -6/Cetus | Allies destroyed Cetus Guard 21112 | -6/Cetus | Allies destroyed Cetus Guard 21121 | -6/Cetus | Destroyed Cetus Guard 21221 | -6/Cetus | Started Cetus Manufacturing Module 21246 | -6/Cetus | Manufactured an Enhanced Grunt 21271 | -6/Cetus | Manufactured an Enhanced Grunt 21296 | -6/Cetus | Manufactured an Enhanced Grunt 21321 | -6/Cetus | Manufactured an Enhanced Grunt 21328 | -6/Cetus | Escorted A7 to Cetus Mainframe 21346 | -6/Cetus | Manufactured an Enhanced Grunt 21374 | -6/Cetus | Discovered new exit (range 15) 21420 | -6/Cetus | Spotted Cetus Guard 21420 | -6/Cetus | Spotted Cetus Guard 21423 | -6/Cetus | Spotted Cetus Guard 21425 | -6/Cetus | Spotted Cetus Guard 21430 | -6/Cetus | Destroyed Cetus Guard 21433 | -6/Cetus | Allies destroyed Cetus Guard 21435 | -6/Cetus | Allies destroyed Cetus Guard 21437 | -6/Cetus | Allies destroyed Cetus Guard 21453 | -6/Cetus | Discovered exit to Factory (range 15) 21465 | -6/Cetus | Met Revision 17 21592 | -6/Cetus | Entered Archives 21592 | -6/Archives | Accompanied by 6 allies (A7) 21597 | -6/Archives | Received a hacking code to weaken MAIN.C 21607 | -6/Archives | Build established: Commander-Golem 22248 | -6/Archives | Discovered new exit (range 16) 22291 | -6/Archives | Entered Hub_04(d) 22291 | -6/Hub_04(d) | Accompanied by 4 allies 22291 | -6/Hub_04(d) | Discovered exit to Factory (range 10) 23041 | -6/Hub_04(d) | Network Hub disabled 23044 | -6/Hub_04(d) | Network Hub disabled 23068 | -6/Hub_04(d) | Network Hub disabled 23068 | -6/Hub_04(d) | Network Hub disabled 23129 | -6/Hub_04(d) | Entered Factory 23129 | -5/Factory | Evolved 2 slots: Utility x2 23361 | -5/Factory | Build established: Golem 23409 | -5/Factory | Unchained authorized (DW-4LL) 23835 | -5/Factory | DW-4LL burst out of a wall 23842 | -5/Factory | System corruption reached 10% 23852 | -5/Factory | Sucked down chute 23852 | -5/Factory | Entered Waste 23867 | -5/Waste | EMP discharged 23867 | -5/Waste | System corruption reached 30% 23871 | -5/Waste | Spotted C-40 Crusher 23882 | -5/Waste | Lost 10 parts (10u) 23909 | -5/Waste | Spotted C-40 Crusher 23912 | -5/Waste | Spotted C-40 Crusher 23922 | -5/Waste | Destroyed C-40 Crusher 23957 | -5/Waste | Spotted C-40 Crusher 23958 | -5/Waste | Spotted C-40 Crusher 23967 | -5/Waste | EMP discharged 23997 | -5/Waste | Spotted C-40 Crusher 24041 | -5/Waste | Lost 4 parts (1p2u1w) 24067 | -5/Waste | EMP discharged 24067 | -5/Waste | Discovered new exit (range 10) 24086 | -5/Waste | Entered Factory 24716 | -5/Factory | Discovered new exit (range 3) 24722 | -5/Factory | Destroyed 12 combat bots 24777 | -5/Factory | Identified exit to Factory 25286 | -5/Factory | First assault squad dispatched 25386 | -5/Factory | Discovered new exit (range 13) 25409 | -5/Factory | Identified exit to Upper Caves 25411 | -5/Factory | Entered Upper Caves 25739 | -5/Upper Caves | Attracted the attention of an 0b10 checkpoint 26289 | -5/Upper Caves | Discovered new exit (range 5) 26298 | -5/Upper Caves | Identified exit to Upper Caves 26300 | -5/Upper Caves | Entered another Upper Caves area 26321 | -5/Upper Caves | Discovered exit to Factory (range 10) 26461 | -5/Upper Caves | Encountered a Warlord checkpoint 26550 | -5/Upper Caves | Spotted B-75 Beast 26603 | -5/Upper Caves | Destroyed B-75 Beast 26731 | -5/Upper Caves | Discovered new exit (range 15) 26734 | -5/Upper Caves | Encountered a Master Thief 26734 | -5/Upper Caves | Encountered a Master Thief 26736 | -5/Upper Caves | Encountered a Master Thief 26738 | -5/Upper Caves | Centrium Medium Armor Plating stolen by Master Thief 26743 | -5/Upper Caves | GOLEM Unit stolen by Master Thief 26858 | -5/Upper Caves | Identified exit to Zhirov 26938 | -5/Upper Caves | Entered Zhirov 26940 | -5/Zhirov | Discovered new exit (range 4) 26978 | -5/Zhirov | Met Zhirov 27026 | -5/Zhirov | Learned location of Quarantine (-3) 27026 | -5/Zhirov | Learned location of Testing (-2) 27026 | -5/Zhirov | Learned location of Command (-1) 27039 | -5/Zhirov | Zhirov requested help retrieving the SGEMP Prototype 27073 | -5/Zhirov | Found Alien Artifact 27073 | -5/Zhirov | Identified Integrated Reactor 27073 | -5/Zhirov | Installed Integrated Reactor, increased core energy generation (+10) 27097 | -5/Zhirov | Found Alien Artifact 27225 | -5/Zhirov | Identified exit to Proximity Caves 27858 | -5/Zhirov | Entered Proximity Caves 28934 | -4/Proximity Caves | Learned location of 1 exit from Research 29043 | -4/Proximity Caves | Attracted the attention of an 0b10 checkpoint 29161 | -4/Proximity Caves | Discovered exit to Factory (range 10) 29341 | -4/Proximity Caves | Entered Factory 29341 | -4/Factory | Evolved 2 slots: Utility x2 29342 | -4/Factory | Identified exit to Upper Caves 29631 | -4/Factory | Discovered new exit (range 15) 30201 | -4/Factory | Entered Upper Caves 30203 | -4/Upper Caves | Encountered a Master Thief 30204 | -4/Upper Caves | Alien Artifact stolen by Master Thief 30212 | -4/Upper Caves | Encountered a Master Thief 30214 | -4/Upper Caves | Alien Artifact stolen by Master Thief 30726 | -4/Upper Caves | Attracted the attention of an 0b10 outpost 31034 | -4/Upper Caves | Spotted B-86 Titan 31039 | -4/Upper Caves | Destroyed B-86 Titan 31095 | -4/Upper Caves | Discovered new exit (range 9) 31119 | -4/Upper Caves | Entered another Upper Caves area 31119 | -4/Upper Caves | Accompanied by 2 allies 31239 | -4/Upper Caves | Spotted B-86 Titan 31245 | -4/Upper Caves | Destroyed B-86 Titan 31290 | -4/Upper Caves | Learned Research interactive machine intel 32233 | -4/Upper Caves | Discovered new exit (range 5) 32242 | -4/Upper Caves | Entered Warlord 32312 | -4/Warlord | System corruption cleaned by Quarantine Array 32519 | -4/Warlord | Met Warlord 32544 | -4/Warlord | Warlord's base attacked by MAIN.C 32730 | -4/Warlord | Opened side exit 32844 | -4/Warlord | Spotted Striker 32844 | -4/Warlord | Spotted Executioner 32844 | -4/Warlord | Spotted Striker 32853 | -4/Warlord | Discovered new exit (range 10) 32869 | -4/Warlord | Entered Proximity Caves 32891 | -3/Proximity Caves | Lost 4 parts (1p2u1w) 33966 | -3/Proximity Caves | Attracted the attention of an 0b10 checkpoint 34546 | -3/Proximity Caves | Discovered new exit (range 12) 34601 | -3/Proximity Caves | Entered Research 34601 | -3/Research | Evolved 2 slots: Utility x2 34602 | -3/Research | Identified exit to Quarantine 34603 | -3/Research | Loaded intel: 46 interactive machine locations 34713 | -3/Research | Spotted B-86 Titan 34721 | -3/Research | Destroyed B-86 Titan 34801 | -3/Research | Revision forces began assault on 0b10 34835 | -3/Research | Met up with Revision 17++ 34939 | -3/Research | Discovered new exit (range 10) 35041 | -3/Research | Spotted B-86 Titan 35055 | -3/Research | Destroyed B-86 Titan 35173 | -3/Research | Lost 4 allies 35301 | -3/Research | Research terminal network offline 35630 | -3/Research | Entered Quarantine 35660 | -3/Quarantine | Found Alien Artifact 35665 | -3/Quarantine | Found Alien Artifact 35677 | -3/Quarantine | Found Alien Artifact 35680 | -3/Quarantine | Found Alien Artifact 35693 | -3/Quarantine | Found Alien Artifact 35706 | -3/Quarantine | Found Alien Artifact 35706 | -3/Quarantine | Identified Dimensional Node Initializer (x2) 35706 | -3/Quarantine | Initialized slip node 36198 | -3/Quarantine | Destroyed 7 combat bots 36292 | -3/Quarantine | Lost 3 parts (2u1w) 36301 | -3/Quarantine | Discovered new exit (range 3) 36750 | -3/Quarantine | System corruption reached 10% 36941 | -3/Quarantine | Found Alien Impact Weapon 37065 | -3/Quarantine | Found Alien Artifact 37123 | -3/Quarantine | Identified Core Reset Matrix 37123 | -3/Quarantine | Identified Transdimensional Reconstructor (x4) 37235 | -3/Quarantine | Found Alien Artifact 38147 | -3/Quarantine | Entered Research 38147 | -2/Research | Warlord forces began assault on 0b10 38147 | -2/Research | Evolved 2 slots: Utility x2 38257 | -2/Research | Research machine network offline 38612 | -2/Research | Discovered new exit (range 16) 38640 | -2/Research | Identified exit to Access 38725 | -2/Research | Met up with Warlord 38788 | -2/Research | Discovered exit to Access (range 14) 38834 | -2/Research | Found Prototype Processor 38834 | -2/Research | Identified Exp. Targeting Computer 38974 | -2/Research | Borebot progress halted 39008 | -2/Research | Borebot progress halted 39126 | -2/Research | Spotted Executioner 39126 | -2/Research | Spotted Executioner 39129 | -2/Research | Destroyed Executioner 39142 | -2/Research | Destroyed Executioner 39159 | -2/Research | Lost 3 allies 39243 | -2/Research | Spotted Executioner 39250 | -2/Research | Destroyed Executioner 39269 | -2/Research | Found Exp. Targeting Computer 39270 | -2/Research | Lost 5 allies 39320 | -2/Research | Spotted Executioner 39320 | -2/Research | Warped through subspace 39498 | -2/Research | Spotted Striker 39498 | -2/Research | Spotted Striker 39505 | -2/Research | Destroyed Striker 39511 | -2/Research | Destroyed Striker 39521 | -2/Research | Spotted Executioner 39521 | -2/Research | Destroyed Executioner 39523 | -2/Research | Spotted Executioner 39525 | -2/Research | Destroyed Executioner 39559 | -2/Research | Destroyed 9 combat bots 39562 | -2/Research | Spotted Executioner 39573 | -2/Research | Destroyed Executioner 39616 | -2/Research | Spotted Striker 39637 | -2/Research | Destroyed Striker 39654 | -2/Research | Given Cave Seal Controls access code 39939 | -2/Research | Warlord destroyed during the assault 40031 | -2/Research | Discovered new exit (range 12) 40051 | -2/Research | Entered Testing 40238 | -2/Testing | Found Prototype Energy Gun 40238 | -2/Testing | Identified Tachyon Dispersion Ray 40270 | -2/Testing | Found Prototype Hackware 40311 | -2/Testing | Found Prototype Hackware 40386 | -2/Testing | Found Prototype Device 40386 | -2/Testing | Identified AEGIS Remote Shield 41122 | -2/Testing | Scanned by Researcher 41285 | -2/Testing | Lost 7 parts (6u1w) 41349 | -2/Testing | Lost 3 parts (1p1u1w) 41372 | -2/Testing | Discovered exit to Access (range 5) 41429 | -2/Testing | Rewired PL-D3RTZPTIKL 41477 | -2/Testing | Core integrity fell below 50% 41530 | -2/Testing | Found Prototype Energy Gun 41530 | -2/Testing | Identified Warp Gun 41551 | -2/Testing | First assault squad dispatched 41880 | -2/Testing | Spotted Fortress 41955 | -2/Testing | Lost 3 parts (1n1u1w) 41997 | -2/Testing | System corruption reached 10% 42025 | -2/Testing | Discovered new exit (range 5) 42025 | -2/Testing | Discovered new exit (range 6) 42035 | -2/Testing | Lost 4 parts (3u1w) 42035 | -2/Testing | Entered Section 7 42043 | -2/Section 7 | Identified System Mapper 42044 | -2/Section 7 | Identified Ghost Barrier 42117 | -2/Section 7 | Found Alien Artifact 42117 | -2/Section 7 | Identified Integrated Mediator 42117 | -2/Section 7 | Installed Integrated Mediator, increased core attachment efficiency 42269 | -2/Section 7 | Spotted S7 Guard 42340 | -2/Section 7 | Build established: Hacker-Golem 42359 | -2/Section 7 | Found Alien Artifact 42359 | -2/Section 7 | Identified Integrity Redistributor 42359 | -2/Section 7 | Used Integrity Redistributor, redistributed integrity to core (+255) 42449 | -2/Section 7 | Assimilated P-80 Master with FLK Orb 42452 | -2/Section 7 | Assimilated P-80 Master with FLK Orb 42456 | -2/Section 7 | Identified Core Stripper 42468 | -2/Section 7 | Lost 3 parts (1u2w) 42508 | -2/Section 7 | Destroyed S7 Guard 42526 | -2/Section 7 | Found Alien Artifact 42526 | -2/Section 7 | Identified Navigation Efficiency Matrix 42526 | -2/Section 7 | Installed Navigation Efficiency Matrix, process failed with unexpected side effects 42535 | -2/Section 7 | First assault squad dispatched 42639 | -2/Section 7 | Master 9a assimilated hostile Y-72 Warden 42708 | -2/Section 7 | Found Integrity Redistributor 42727 | -2/Section 7 | Spotted B-90 Cyclops 42835 | -2/Section 7 | Identified Hpw. Transdimensional Reconstructor 42835 | -2/Section 7 | Warped through subspace 42865 | -2/Section 7 | Lost 6 parts (1p1n3u1w) 42934 | -2/Section 7 | Warped through subspace 42939 | -2/Section 7 | Spotted Alpha 7 42939 | -2/Section 7 | Spotted Alpha 7 42978 | -2/Section 7 | Assimilated Y-72 Warden with FLK Orb 42991 | -2/Section 7 | Warped through subspace 43016 | -2/Section 7 | Lost 3 parts (1n2u) 43297 | -2/Section 7 | Found Prototype Protection 43297 | -2/Section 7 | Identified Hvy. Regenerative Plating 43414 | -2/Section 7 | Core integrity fell below 20% 43427 | -2/Section 7 | Lost 3 parts (1p2u) 43536 | -2/Section 7 | Warped through subspace 43631 | -2/Section 7 | Lost 3 parts (1u2w) 43829 | -2/Section 7 | System corruption reached 30% 43834 | -2/Section 7 | Destroyed by P-80 Master with Gamma Rifle Last Messages --------------- 43804_ :UMASLEVNOZENP7YKYBD&BV 43805_ Slug penetrates Wall. 43806_ Penetrated by Slug. 43809_ Asb. Nanovents destroyed. 43810_ Navigation matrix triggers involuntary quantum shift. 43816_ Asb. Alloy Leg destroyed. 43817_ U-05 Engineer lays Concrete. 43822_ Asb. Nanovents destroyed. 43824_ Asb. Focal Cannon destroyed. 43825_ Lgt. Antimatter Reactor destroyed. 43825_ Asb. Alloy Armor destroyed. 43828_ Asb. Biocell Array destroyed. 43828_ Asb. Alloy Armor destroyed. 43829_ System corrupted: Heat flow error (+251). 43831_ Huge Storage Unit destroyed. 43833_ P-80 Master resets Y-72 Warden, system corruption cleaned. 43833_ GOLEM Unit destroyed. 43833_ Penetrated by Slug. Map ----- +----------------------------------------------------+ | #= #/! #???????????????????????# """ #?? | | # #! #???????????????????????# """ #?? | | # #! #???????????????????????# #?? | | # # #???????????????????????###########?? | | ###### #???????????????????????????????????? | | #????# =#???????????????????????????????????? | | #????# [%##############??????????????????????? | | ###### [% ????????????? | | ##+##############??????????????????????? | | # ??????????????????????????????????? | | """"""" #* ????????????????????????????????? | | """" "" # #???????????????????????????????? | | # #???????????????????????????????? | | # #???????????????????????????????? | | # #???????????????????????????????? | | ########???????????????????????????????? | | #??????????????????????????????????????? | | #??????????????????????????????????????? | | #??????????????????????????????????????? | | ! #??????????????????????????????????????? | | !#?????#????????????????????????????????? | | %#######;#####+########?????????????????? | | !p/! ########## #???? | | p= ! #???? | | * Y!! #???? | | ! p !p@|* #???? | | ##################H### """"""" #???? | | ###?## #??"""""""?????????????? | | """""" #???# """"""" #????""""??????????????? | | """""" #???## """"""" #?????? ?????????????? | | """""" #????# """"""" #???????? ????????????? | | #????# #??????????????????????? | | = #????? #??????????????????????? | | #####?###+##########??????????????????????? | | ] " ] # % %###??????????????????????????? | | #######" "%% "%#??????????????????????????? | | " # #??????????????????????????? | | ?####### # " ???????????????????????????? | | ???????# ]# % # #??????????????????????????? | | ???????## ?# ## #?????????????????????????? | | ????????# ?########?##?????????????????????????? | | ????????+ ??????????????????????????????????????? | | ????????# ??????????????????????????????????????? | | ????????# ???????????????????????????????????????? | | ????????##???????????????????????????????????????? | | ?????????????????????????????????????????????????? | | ?????????????????????????????????????????????????? | | ?????????????????????????????????????????????????? | | ?????????????????????????????????????????????????? | | ?????????????????????????????????????????????????? | +----------------------------------------------------+ Best States ------------- Heat Dissipation 109 Energy Generation 55 Energy Capacity 2420 Matter Stores 300 Matter Capacity 300 Sight Range 23 Robot Scan Range 20 Terrain Scan Density 10 Additional Mass Support 20 Armor Coverage 1200 Resistance: KI 15 Resistance: TH 15 Resistance: EX 15 Resistance: EM 15 Resistance: I 15 Resistance: S 15 Resistance: P 15 Weapon Shielding 100 Phase Shifting 8 Evasion (%) 48 Targeting Accuracy 12 Core Analysis 8 Offensive Hacking 20 Defensive Hacking 20 Item Schematics ----------------- Thermic Laser | -7/Zion | Archive Imp. Trap Extractor | -7/Zion | Archive Med. Treads | -7/Zion | Archive Imp. Heavy Armor Plating | -7/Zion | Archive Mass Driver | -7/Zion | Archive Matter Compressor | -7/Zion | Archive Arm. Huge Wheel | -7/Zion | Archive Fission Core | -7/Zion | Archive Imp. Titanium Leg | -7/Zion | Archive Hvy. Flak Cannon | -7/Zion | Archive Adv. ECM Suite | -7/Zion | Archive Lgt. Angular Momentum Engine | -7/Zion | Archive Hvy. Laser | -7/Zion | Archive Adv. Hacking Suite | -7/Zion | Archive Assault Drone Bay | -5/Zhirov | Free Exp. Heat Sink | -5/Zhirov | Free Exp. Optical Array | -5/Zhirov | Free Imp. Arc Thrower | -5/Zhirov | Free Lrn. Phase Cannon | -2/Testing | Archive Gravity Neutralizer | -2/Testing | Archive Com. Tesla Bomb Launcher | -2/Testing | Archive Nanosword | -2/Testing | Archive Hds. Centrium Wheel | -2/Testing | Archive Exp. Sensor Array | -2/Testing | Archive Exp. Signal Interpreter | -2/Testing | Archive Singularity Reactor | -2/Testing | Archive Exp. Coolant Injector | -2/Testing | Archive Adv. Gravity Neutralizer | -2/Testing | Archive Exp. Q-thruster | -2/Testing | Archive Point Singularity Launcher | -2/Testing | Archive Exp. Cooling System | -2/Testing | Archive Exp. Thermal Shield | -2/Section 7 | Archive Robot Schematics ------------------ R-06 Scavenger | -7/Zion | Archive X-62 Marksman | -7/Zion | Archive A-27 Freighter | -2/Testing | Archive M-36 Artificer | -2/Section 7 | Archive Fabricated ------------ Nothing Repaired ---------- Wheel | 25% | -9/Materials Exp. Sensor Array | 62% | -8/Materials | Broken Enh. Autogun | 21% | -8/Storage Enh. Autogun | 49% | -8/Storage | Broken Enh. Autogun | 56% | -8/Storage Hrd. Heavy Armor Plating | 19% | -8/Storage Cooling System | 30% | -8/Storage Enh. Autogun | 73% | -8/Storage Hvy. Ion Engine | 70% | -8/Storage Studied --------- Com. Wheel | -9/Materials | Hacked Wheel | -9/Materials | Hacked Lgt. Nuclear Core | -8/Materials | Hacked Alien Tech Used ----------------- Integrated Reactor Dimensional Node Initializer Transdimensional Reconstructor Integrated Mediator Integrity Redistributor Core Stripper Navigation Efficiency Matrix High-powered Transdimensional Reconstructor Achievements -------------- 404 Be The Sidekick Full Golem Giant Slayer Great Explorer Treasure Hunter Challenges ------------ None Game ------ Seed TerrabombMultitargetingPower Manual? 0 Play Time 03:14:17 Cumulative 594.5 hours Start 2025.11.27 @ 00:00:40 End 2025.11.27 @ 03:36:29 Sessions 1 Manual Loads 0 Difficulty Rogue Special Mode None Game No. 921 Rogue 766 Adventurer 148 Explorer 7 Win Type - Total 29 Types 21/1/4/1/0/0/1/0/0/1 Lore% 81 Gallery% 85 Achievement% 74 Wizard Run 0 Options --------- Layout 1 ASCII 0 Keyboard 0 Movement Numpad Keybinds 0 Fullscreen 2 Font 24/Smallcaps Map View 50x40 Zoom Use 0% Tactical HUD 1 Map Filters NONE Filters NONE Steam 1 RUN: 45ed923c-b670-4efb-8f56-ce9e1cb0a972